Cogmind - Beta 9.4 @@@ ROGUE MODE // 2020.03.08 @ 16:55:46 Player: Trione Result: Destroyed by B-99 Colossus with Multirail Performance ------------- Evolutions (9) 4500 Regions Visited (39) 7800 Robots Destroyed (665) 3325 Value Destroyed (30697) 30697 Prototype IDs (183) 3660 Alien Tech Used (13) 2600 Bonus (18017) 18017 TOTAL SCORE: 70599 Bonus ------- Triggered High Security 1000 High Alert Combat Kills 11149 Follower Combat Kills 3548 Entered Garrisons 1600 Used RIF Installer 3500 Network Hubs Disabled 400 Aligned with FarCom 300 Built Enhanced Grunts 300 A7 Reached Mainframe 300 Met R17 at Cetus 500 Scanned by Researcher 500 Friendly Fire -5080 Cogmind --------- Core Integrity 0/1600 Matter 294/300 Energy 850/850 System Corruption 20% Temperature Cool (0) Movement Core (50) Location -1/Command Parts ------- > --- POWER (3) -------- (None) > --- PROPULSION (5) --- (None) > --- UTILITY (15) ----- Energy Well Dimensional Manipulator Advanced Visual Processing Unit Relay Coupler [Behemoth] (5) > --- WEAPON (3) ------- Vibroblade > --- INVENTORY (6) ---- Advanced Weapon Cycler Improved Stasis Canceller Advanced Transmission Jammer Antimissile System Plasma Lance Peak State ------------ > --- POWER ------------ Micro Fission Core Micro Fission Core Micro Fission Core > --- PROPULSION ------- Cooled Linear Gravjet Combat Linear Gravjet Combat Linear Gravjet Combat Linear Gravjet Combat Linear Gravjet > --- UTILITY ---------- Experimental Heat Sink Large Storage Unit Large Storage Unit Large Storage Unit Large Storage Unit High-capacity Storage Unit Dimensional Manipulator Advanced Armor Integrity Analyzer Advanced Weapon Cycler Advanced Transmission Jammer SHELL Armor EM Dispersion Field Advanced Force Field > --- WEAPON ----------- Sigix Quantum Sheargun Sigix Broadsword > --- INVENTORY -------- Cooled Linear Gravjet Cooled Linear Gravjet Cooled Linear Gravjet Cooled Linear Gravjet Combat Linear Gravjet Large Storage Unit Energy Well Advanced Matter Compressor Experimental Targeting Computer Precision Matter Filter Advanced Weapon Cycler Improved Stasis Canceller Experimental ECM Suite Improved Propulsion Shielding Heavy Regenerative Plating Antimissile System Relay Coupler [Behemoth] System Restoration Module Transdimensional Reconstructor Transdimensional Reconstructor Core Regenerator Matter Drive Sigix Quantum Sheargun Sigix Quantum Sheargun Sigix Quantum Sheargun Firepult Perforator Heavy Proton Missile Launcher Gamma Bomb Array Mini Smartbomb Launcher Improved Remote Datajack Vibroblade Force Lance Plasma Lance [Rating: 228] Favorites ----------- Power Micro Fission Core Engine Improved Deuterium Engine Power Core Micro Fission Core Reactor Mini Fusion Reactor Propulsion Combat Linear Gravjet Treads Light Treads Leg Aluminum Leg Wheel Armored Huge Wheel Hover Unit Combat Linear Gravjet Flight Unit Xenon Bombardment Thruster Utility Large Storage Unit Device Experimental Sensor Array Storage Large Storage Unit Processor Experimental Signal Interpreter Hackware Advanced Hacking Suite Protection Improved Utility Shielding Artifact Phase Armor Weapon Scythe Energy Gun Heavy EM Pulse Gun Energy Cannon Compact HERF Cannon Ballistic Gun Autogun Ballistic Cannon Light Cannon Launcher Mini Smartbomb Launcher Special Weapon Improved Remote Datajack Impact Weapon Core Stripper Slashing Weapon Scythe Piercing Weapon Plasma Lance Special Melee Weapon Improved Datajack Build | -11 -10 -10 -10 -9 -8 -8 -8 -8 -7 -7 -7 -7 -7 -7 -6 -6 -6 -6 -5 -5 -5 -5 -5 -5 -5 -4 -4 -4 -4 -4 -4 -3 -3 -3 -2 -2 -2 -1 -1 ------- Run | Scr Mat Min Exi Min Mat Gar Mat Gar Fac Was Fac Gar Fac Gar Fac Was Fac Gar Fac Was Fac Ext Cet Arc Hub Fac Was Fac Gar Fac Gar Res Qua Gar Res Tes Sec Acc Com Slots Evolved 18 | . . . . . 4 . . . 2 . . . . . 2 . . . 2 . . . . . . 2 . . . . . 2 . . 2 . . 2 . Power 1 | . . . . . . . . . . . . . . . 1 . . . . . . . . . . . . . . . . . . . . . . . . Propulsion 3 | . . . . . . . . . 2 . . . . . . . . . 1 . . . . . . . . . . . . . . . . . . . . Utility 13 | . . . . . 4 . . . . . . . . . 1 . . . 1 . . . . . . 2 . . . . . 2 . . 2 . . 1 . Weapon 1 | . . . . . . . . . . . . . . . . . . . . . . . . . . . . . . . . . . . . . . 1 . Parts Attached 1439 | 6 17 2 . 7 26 19 18 11 48 2 26 25 7 19 36 6 16 24 27 1 33 29 30 5 9 55 6 112 34 61 38 60 32 45 107 95 159 79 107 Power 68 | 1 2 . . . 2 1 1 1 3 . . 1 . . 2 . . . 1 . 2 3 . . 2 2 . 8 6 2 4 . 2 2 2 4 9 4 1 Engine 7 | 1 1 . . . 1 . 1 1 1 . . 1 . . . . . . . . . . . . . . . . . . . . . . . . . . . Core 41 | . 1 . . . 1 1 . . 2 . . . . . 2 . . . 1 . 2 3 . . 2 1 . 3 3 . 2 . 1 1 1 3 7 4 . Reactor 20 | . . . . . . . . . . . . . . . . . . . . . . . . . . 1 . 5 3 2 2 . 1 1 1 1 2 . 1 Propulsion 285 | 2 6 . . 1 5 2 . . 13 . 6 9 5 3 14 . 4 3 13 . 16 4 7 . 1 21 . 15 3 11 3 26 5 7 27 25 12 3 13 Treads 13 | . 3 . . 1 2 1 . . 2 . . 3 . . . . . . . . . . 1 . . . . . . . . . . . . . . . . Leg 5 | . . . . . . . . . . . . 4 . . . . . . . . . . . . . . . . . . . . . . . 1 . . . Wheel 14 | 2 3 . . . 3 1 . . 3 . . 2 . . . . . . . . . . . . . . . . . . . . . . . . . . . Hover 249 | . . . . . . . . . 4 . 6 . 5 3 14 . 4 3 13 . 16 4 6 . 1 21 . 15 3 11 3 26 5 7 27 24 12 3 13 Flight 4 | . . . . . . . . . 4 . . . . . . . . . . . . . . . . . . . . . . . . . . . . . . Utility 554 | 1 4 . . . 7 1 4 . 18 . 9 2 2 6 15 4 9 11 9 . 10 11 9 3 4 14 . 45 7 28 21 21 14 21 59 42 72 33 38 Device 320 | . . . . . 1 1 . . 3 . 5 1 1 . 4 2 3 3 3 . 6 5 5 3 3 5 . 36 3 21 13 13 8 9 38 23 56 26 20 Storage 68 | 1 4 . . . 3 . 4 . 7 . . . . 1 3 . . 2 3 . . . . . . 7 . . 2 . 2 2 1 3 4 8 . 3 8 Processor 8 | . . . . . 1 . . . . . . . . . 1 . 1 . . . . . . . . . . . . . . . . . . 1 2 . 2 Hackware 56 | . . . . . . . . . 5 . 2 . 1 4 3 . 2 2 3 . 3 . . . 1 1 . 6 1 2 2 3 1 4 4 1 2 2 1 Protection 92 | . . . . . 2 . . . 3 . 2 1 . 1 4 2 3 4 . . 1 6 4 . . 1 . 3 1 5 4 3 4 2 11 8 9 2 6 Artifact 10 | . . . . . . . . . . . . . . . . . . . . . . . . . . . . . . . . . . 3 2 1 3 . 1 Weapon 532 | 2 5 2 . 6 12 15 13 10 14 2 11 13 . 10 5 2 3 10 4 1 5 11 14 2 2 18 6 44 18 20 10 13 11 15 19 24 66 39 55 Energy Gun 59 | 1 . 2 . . 4 2 . 3 . . . . . . . . . . . 1 . . 1 . . 1 2 1 . 1 2 . . . 2 . 14 6 16 Energy Cannon 37 | . . . . . . . 1 . 1 . . . . . . . . . . . . . 1 1 . 2 . 5 . 1 . 1 3 6 3 3 5 . 4 Ballistic Gun 29 | 1 3 . . 3 2 7 4 2 2 . . . . . . . . . . . . . 4 . . . . . . . . . . . . . 1 . . Ballistic Cannon 14 | . 1 . . . 1 . . . . . . . . . . . . . . . . . . . . . . . . . . . . . . 4 4 3 1 Launcher 127 | . . . . 3 1 6 3 5 2 1 4 7 . 4 2 1 1 5 1 . 1 6 4 . 1 5 2 8 8 5 4 3 . 3 2 . 2 10 17 Special Weapon 63 | . . . . . . . . . 2 1 . 1 . 2 . . . . . . . . . . . 1 2 8 1 . 3 2 3 2 6 4 14 5 6 Impact Weapon 1 | . . . . . . . . . . . . . . . . . . . . . . . . . . . . . . . . . . . . 1 . . . Slashing Weapon 97 | . 1 . . . 4 . 5 . 4 . 6 5 . 4 2 1 1 3 . . 3 2 2 . . 3 . 14 1 8 . . 2 . 2 2 4 11 7 Piercing Weapon 70 | . . . . . . . . . . . . . . . . . . . . . . . . . . . . 6 4 3 1 5 3 4 4 10 22 4 4 Special Melee Weapon 35 | . . . . . . . . . 3 . 1 . . . 1 . 1 2 3 . 1 3 2 1 1 6 . 2 4 2 . 2 . . . . . . . Unidentified Prototypes 20 | . . . . . 1 . 2 . . . 1 . . . 1 . . . 1 . . . 5 . . 1 . . . . . . 1 . 1 2 4 . . Parts Lost 118 | . 2 . . 1 6 6 2 1 1 . 1 10 . . 8 . 1 1 3 . 4 1 . 1 . . . 2 . . 2 2 . . 2 9 3 3 46 Power 10 | . . . . . 2 1 1 . . . . 1 . . . . . . 1 . . . . . . . . . . . 1 . . . . . . . 3 Propulsion 41 | . 1 . . 1 1 2 . . . . 1 7 . . 3 . . 1 1 . 3 1 . . . . . 2 . . 1 1 . . . 1 . 1 13 Utility 45 | . . . . . 3 . . . 1 . . 1 . . 3 . . . 1 . 1 . . 1 . . . . . . . . . . 2 6 2 2 22 Weapon 22 | . 1 . . . . 3 1 1 . . . 1 . . 2 . 1 . . . . . . . . . . . . . . 1 . . . 2 1 . 8 Highest Loss Streak 26 | . 1 . . 1 3 2 1 1 1 . 1 4 . . 3 . 1 1 2 . 3 1 . 1 . . . 2 . . 2 1 . . 2 4 3 1 26 Average Slot Usage (%) 96 | . 99 100 100 99 82 85 87 89 94 92 91 89 97 98 97 100 98 99 99 100 99 99 99 99 100 99 100 98 98 99 99 99 99 96 99 94 94 93 75 Engine 1 | . 14 14 14 14 7 1 2 9 4 . . 2 7 7 4 . . . . . . . . . . . . . . . . . . . . . . . . Core 6 | . . . . . . 5 3 . 2 7 7 4 . . 7 13 13 13 10 11 11 11 11 11 11 6 5 4 5 4 2 4 4 4 4 4 6 11 8 Reactor 1 | . . . . . . . . . . . . . . . . . . . . . . . . . . 3 5 5 4 5 7 4 3 3 3 3 1 . . Wheel 1 | . 27 28 28 15 6 5 9 9 4 . . 1 9 . . . . . . . . . . . . . . . . . . . . . . . . . . Hover 20 | . . . . . . . . . 2 30 29 6 13 29 25 26 25 26 28 29 28 29 28 29 29 26 26 26 26 25 26 22 23 23 21 20 20 18 16 Device 9 | . . . . . 2 5 9 9 6 7 6 2 7 . 5 5 5 4 5 5 5 7 4 9 7 9 10 13 9 13 9 17 13 4 18 12 11 13 16 Storage 17 | . 27 28 28 28 33 36 36 36 11 7 7 7 7 5 7 13 13 13 17 17 17 17 17 17 17 15 15 15 15 15 18 19 22 23 21 21 25 23 16 Processor 5 | . . . . . 3 9 9 9 7 7 7 7 7 7 5 6 6 6 5 5 5 5 5 5 5 5 5 5 5 5 5 4 4 4 4 4 8 7 3 Hackware 13 | . . . . . . . . . 16 23 23 23 23 30 24 20 19 15 16 17 16 11 11 5 8 15 15 15 10 14 14 15 14 16 14 12 5 4 . Protection 1 | . . . . . 2 . . . 1 . . 3 . . . . . 4 . . . 3 5 5 5 4 5 1 9 1 3 . . . . 5 3 3 3 Ballistic Gun 1 | . 12 8 . 25 7 13 5 7 . . . . . . . . . . . . . . . 1 . . . . . . . . . . . . . . . Special Weapon 1 | . . . . . . . . . . . . 1 7 5 1 . . . . . . . . . . . 1 1 . . 3 1 3 3 3 1 2 1 . Slashing Weapon 4 | . 3 7 . . 8 1 12 . 6 2 6 11 7 7 5 5 5 5 5 1 4 3 4 5 5 4 5 4 4 4 . . . . . . . 3 3 Piercing Weapon 1 | . . . . . . . . . . . . . . . . . . . . . . . . . . . . 1 1 4 4 4 3 1 3 4 4 1 . Special Melee Weapon 1 | . . . . . . . . . 4 . . . . . 3 6 5 5 4 5 5 4 2 2 4 4 . 1 1 . . 2 . . . . . . . Naked Turns . | . . . . . . . . . . . . . . . . . . . . . . . . . . . . . . . . . . . . . . . . Heaviest Build 190 | 11 74 75 75 75 91 89 112 113 116 24 30 34 34 43 48 52 53 64 69 65 65 80 76 77 76 102 103 111 117 118 139 130 128 190 153 158 176 181 181 Greatest Support 181 | 26 40 26 26 26 46 46 28 28 56 24 48 60 50 50 60 59 62 64 72 70 78 79 86 86 70 106 105 113 122 119 120 133 159 143 160 160 170 181 181 Greatest Overweight (x) 27 | . 2 2 2 7 27 3 3 4 4 . 1 2 2 . 1 . . . 1 1 1 1 1 1 1 1 . 1 1 1 1 1 . 4 1 1 1 1 1 Average Overweight (x) . | . . 2 2 6 2 2 2 3 . . . . . . . . . . . . . . . . . . . . . . . . . . . . . . . Largest Inventory Capacity 44 | 6 20 20 20 20 24 24 32 32 32 10 10 10 10 10 16 16 16 22 24 22 22 22 22 22 22 26 26 26 26 26 32 32 36 42 42 40 42 44 42 Average Capacity 24 | 5 13 20 20 20 23 24 30 32 14 10 10 10 10 8 11 16 16 16 22 22 22 22 22 22 22 23 26 26 25 26 29 30 35 37 34 34 40 41 31 Most Carried 42 | 4 19 20 20 20 24 24 32 32 30 10 10 10 10 10 16 16 16 18 22 22 22 22 22 22 22 26 26 26 26 26 28 31 36 42 41 40 42 42 39 Average Carried 23 | 2 11 19 19 19 23 22 29 31 13 10 9 9 9 8 10 16 15 14 21 21 21 21 21 21 21 23 26 25 24 25 25 29 34 36 33 33 39 39 29 Final Capacity 42 | 6 20 20 20 20 24 24 32 32 10 10 10 10 10 10 16 16 16 22 22 22 22 22 22 22 22 26 26 26 26 26 32 32 36 42 36 40 42 42 6 Final Carried 42 | 4 19 20 20 19 24 24 32 32 10 10 10 10 10 9 16 16 16 18 22 22 22 22 22 22 22 26 26 25 26 26 27 31 36 42 36 40 42 39 5 Class Distribution -------------------- 35% | Hacker-Mutant 28% | Hauler-Mutant 15% | Bothacker-Mutant 5% | Hacker-Sprinter 4% | Generator-Mutant 3% | Machinist-Mutant Dominant Class ---------------- Mutant | -10/Materials Hauler-Mutant | -10/Mines Hauler-Mutant | -10/Exiles Hauler-Mutant | -9/Mines Hauler-Mutant | -8/Materials Hauler-Mutant | -8/Garrison Hauler-Mutant | -8/Materials Hauler-Mutant | -8/Garrison Hacker-Mutant | -7/Factory Hacker-Mutant | -7/Waste Hacker-Mutant | -7/Factory Hacker-Mutant | -7/Garrison Hacker-Mutant | -7/Factory Hacker-Mutant | -7/Garrison Hacker-Mutant | -6/Factory Hacker-Sprinter | -6/Waste Hacker-Sprinter | -6/Factory Machinist-Mutant | -6/Garrison Hacker-Mutant | -5/Factory Hacker-Mutant | -5/Waste Bothacker-Mutant | -5/Factory Bothacker-Mutant | -5/Extension Bothacker-Mutant | -5/Cetus Bothacker-Mutant | -5/Archives Scavenger-Mutant | -5/Hub_04(d) Hacker-Mutant | -4/Factory Hacker-Mutant | -4/Waste Hacker-Mutant | -4/Factory Machinist-Mutant | -4/Garrison Hacker-Mutant | -4/Factory Hauler-Mutant | -4/Garrison Bothacker-Mutant | -3/Research Hauler-Mutant | -3/Quarantine Hauler-Mutant | -3/Garrison Bothacker-Mutant | -2/Research Hauler-Mutant | -2/Testing Hauler-Mutant | -2/Section 7 Generator-Mutant | -1/Access Generator-Mutant | -1/Command Resources | -11 -10 -10 -10 -9 -8 -8 -8 -8 -7 -7 -7 -7 -7 -7 -6 -6 -6 -6 -5 -5 -5 -5 -5 -5 -5 -4 -4 -4 -4 -4 -4 -3 -3 -3 -2 -2 -2 -1 -1 ----------- Run | Scr Mat Min Exi Min Mat Gar Mat Gar Fac Was Fac Gar Fac Gar Fac Was Fac Gar Fac Was Fac Ext Cet Arc Hub Fac Was Fac Gar Fac Gar Res Qua Gar Res Tes Sec Acc Com Matter Collected 26569 | 272 587 57 . 330 538 292 505 376 571 80 346 632 . 213 1036 208 242 473 648 10 230 726 499 67 74 1426 545 2041 548 1112 804 801 240 784 1637 1439 2328 2059 1793 Remotely . | . . . . . . . . . . . . . . . . . . . . . . . . . . . . . . . . . . . . . . . . Salvage Created 34158 | 100 853 . . 364 817 295 779 969 288 . 515 821 . 164 1345 705 319 296 488 . 479 791 853 217 40 919 1022 1490 471 624 196 845 137 658 1740 969 1970 2381 9238 Parts 1434 | 1 43 . . 24 49 16 52 35 20 . 26 35 . 10 69 3 21 11 19 . 22 26 27 17 2 41 9 71 25 44 5 37 7 21 98 54 127 118 249 Haulers Intercepted 22 | . 2 . . . . . 1 . 2 . 5 . . . 4 . 1 . 2 . . . . . . 1 . 1 . 1 . . . . 2 . . . . Recyclers Shooed 27 | . . . . 3 . . 3 . . . 1 . . . 1 . . . . . 1 7 . . . 2 . 3 . . . 3 . . 1 . . 2 . Parts Field Recycled . | . . . . . . . . . . . . . . . . . . . . . . . . . . . . . . . . . . . . . . . . Retrieved Matter . | . . . . . . . . . . . . . . . . . . . . . . . . . . . . . . . . . . . . . . . . Parts Self-Destructed . | . . . . . . . . . . . . . . . . . . . . . . . . . . . . . . . . . . . . . . . . Prevented . | . . . . . . . . . . . . . . . . . . . . . . . . . . . . . . . . . . . . . . . . Kills | -11 -10 -10 -10 -9 -8 -8 -8 -8 -7 -7 -7 -7 -7 -7 -6 -6 -6 -6 -5 -5 -5 -5 -5 -5 -5 -4 -4 -4 -4 -4 -4 -3 -3 -3 -2 -2 -2 -1 -1 ------- Run | Scr Mat Min Exi Min Mat Gar Mat Gar Fac Was Fac Gar Fac Gar Fac Was Fac Gar Fac Was Fac Ext Cet Arc Hub Fac Was Fac Gar Fac Gar Res Qua Gar Res Tes Sec Acc Com Combat Hostiles Destroyed 428 | . 18 . . 20 16 11 16 15 1 . 5 22 . 6 9 3 2 10 . . 3 11 14 1 . 4 5 10 13 4 3 8 2 9 10 7 28 33 109 Melee 84 | . . . . . 6 . 12 . 1 . . 7 . . 1 . 1 2 . . 1 3 . . . . . . 1 2 . 2 2 . 7 1 16 8 11 Guns 42 | . 6 . . 5 8 5 . 5 . . . . . . . . . . . . . . 2 1 . . 1 . . 1 . . . . . . 3 3 2 Cannons 44 | . 12 . . . . . 1 . . . . . . . . . . . . . . . . . . . . . . . . . . 2 2 4 4 8 11 AOE 185 | . . . . 15 2 6 3 9 . . 5 15 . 6 8 3 1 8 . . 2 7 6 . . 4 4 10 12 1 2 6 . 4 1 1 5 9 30 Classes Destroyed 26 | 1 6 . . 2 2 . . 1 2 . . 2 . . . 1 . . . . . . . . . . 1 . 1 1 . . . . . 2 2 . 2 Worker 80 | . . . . 1 2 . . . 2 . 2 . . . 10 . 4 . 4 . 1 2 . . 2 14 . 8 . 6 . 3 . . 4 4 1 4 6 Builder 17 | . 1 . . . 2 . 1 . . . . . . . 3 . . . . . 1 . . . . . . 6 . . . 1 . . . . . 2 . Tunneler 12 | . . . . . . . . . 1 . . . . . . . . . . . 2 . . . . 4 . 2 . 2 . . . . 1 . . . . Hauler 22 | . 2 . . . . . 1 . 2 . 5 . . . 4 . 1 . 2 . . . . . . 1 . 1 . 1 . . . . 2 . . . . Recycler 43 | 1 2 . . 1 . . 1 . 2 . 2 . . . 4 . . . 1 . 3 2 . . . 3 . 8 . 1 . 3 . . 4 1 1 3 . Mechanic 7 | . 1 . . . . . . . . . . . . . . . . . . . . . . . . . . 1 . . . . . . . . . . 5 Operator 5 | . . . . . . . . . . . . 1 . . . . . . . . . . . 4 . . . . . . . . . . . . . . . Watcher 37 | . 1 . . . 2 . 1 . . . . . . . 3 . 2 . 1 . 1 1 1 . . 3 . 4 . 2 . 3 . . 6 . 2 2 2 Swarmer 108 | . 3 . . 15 3 3 5 . . . 4 5 . 3 8 . . 3 . . 2 5 3 . . . . 5 3 . 1 6 . 4 . . 5 10 12 Saboteur 8 | . . . . . . . . . . . . . . . . . . . . . . . . . . . . . . 1 . . . . 1 . . 1 5 Grunt 144 | . 15 . . 4 8 7 3 7 . . . 13 . 2 . . 1 7 . . . 2 4 . . 2 . . 5 . 2 . . 3 1 . 1 7 50 Brawler 13 | . . . . . . . . 1 . . . . . . . . . . . . . . 1 . . . . . . . . . . . . . . . 11 Duelist 13 | . . . . . . . . . . . . 2 . 2 . . . . . . . . . . . . . . . . . . . . 1 . . . 8 Protector 4 | . . . . . . . . . . . . . . . . . . . . . . . . . . . . . . . . . . . . . . . 4 Researcher 1 | . . . . . . . . . . . . . . . . . . . . . . . . . . . . . . . . . . . . 1 . . . Sentry 38 | . . . . . 4 . 7 6 . . . 2 . . . . . 1 . . . 3 . 1 . . . . . . . . . 2 3 . 4 1 4 Specialist 2 | . . . . . . . . . . . . . . . . . . . . . . . . . . . . . 2 . . . . . . . . . . Hunter 14 | . . . . . 1 1 1 1 . . . . . . . . . . . . . 1 . . . . . 1 2 . . . . . . 1 . 1 4 Programmer 59 | . . . . . . . . . 1 . 1 . . . 1 . 1 . . . 1 . . . . 2 . 4 1 3 . 2 2 . 4 4 14 13 5 Compactor 8 | . . . . . . . . . . . . . . . . 3 . . . . . . . . . . 5 . . . . . . . . . . . . Cetus Guard 6 | . . . . . . . . . . . . . . . . . . . . . . . 6 . . . . . . . . . . . . . . . . Investigator 2 | . . . . . . . . . . . . . . . . . . . . . . . . . . . . . . . . . . . . . . . 2 Striker 3 | . . . . . . . . . . . . . . . . . . . . . . . . . . . . . . . . . . . . . . . 3 Executioner 5 | . . . . . . . . . . . . . . . . . . . . . . . . . . . . . . . . . . . . . 2 . 3 Alpha 7 2 | . . . . . . . . . . . . . . . . . . . . . . . . . . . . . . . . . . . . . 2 . . Fortress 1 | . . . . . . . . . . . . . . . . . . . . . . . . . . . . . . . . . . . . 1 . . . Protovariant X 1 | . . . . . . . . . . . . . . . . . . . . . . . . . . . . . . . . . . . . 1 . . . Assembled 1 | . . . . 1 . . . . . . . . . . . . . . . . . . . . . . . . . . . . . . . . . . . Surgeon 1 | . . . . . . . . . . . . . . . . 1 . . . . . . . . . . . . . . . . . . . . . . . Wasp 4 | . . . . . . . . . . . . . . . . 1 . . . . 1 . . . . . . 2 . . . . . . . . . . . Martyr 2 | . . . . . . . . . . . . . . . . . . . . . . . . . . . 2 . . . . . . . . . . . . Guerrilla 1 | . . . . . . . . . . . . . . . . . . . . . . 1 . . . . . . . . . . . . . . . . . Best Kill Streak 23 | 1 7 . . 12 8 3 4 4 2 . 3 7 . 3 8 3 3 3 2 . 6 6 7 3 1 5 3 12 6 5 2 4 2 4 3 3 5 8 23 Combat Bots Only 21 | . 7 . . 11 4 3 3 4 1 . 3 7 . 3 8 3 1 3 . . 2 5 7 1 . 2 3 5 6 1 2 3 2 4 2 2 5 5 21 Max Kills in Single Turn 10 | 1 2 . . 4 4 2 2 2 2 . 1 2 . 2 3 2 1 2 1 . 3 3 3 1 1 4 1 10 2 1 1 4 1 2 1 2 3 3 6 Gunslinging 1 | . . . . . . 1 . . . . . . . . . . . . . . . . . . . . . . . . . . . . . . . . . Exploded 5 | . . . . 4 2 2 2 2 . . 1 2 . 2 3 2 1 2 . . 1 2 3 . . 2 1 5 2 1 1 3 . 2 1 1 3 2 2 Melee 1 | . . . . . 1 . 1 . 1 . . 1 . . 1 . 1 1 . . 1 1 . . . . . . 1 1 . 1 1 . 1 1 1 1 1 Uniques/NPCs Destroyed 1 | . . . . . . . . . . . . . . . . . . . . . . . 1 . . . . . . . . . . . . . . . . A7 (-5/Cetus) Combat | -11 -10 -10 -10 -9 -8 -8 -8 -8 -7 -7 -7 -7 -7 -7 -6 -6 -6 -6 -5 -5 -5 -5 -5 -5 -5 -4 -4 -4 -4 -4 -4 -3 -3 -3 -2 -2 -2 -1 -1 -------- Run | Scr Mat Min Exi Min Mat Gar Mat Gar Fac Was Fac Gar Fac Gar Fac Was Fac Gar Fac Was Fac Ext Cet Arc Hub Fac Was Fac Gar Fac Gar Res Qua Gar Res Tes Sec Acc Com Damage Taken 32406 | . 381 . . 401 1347 819 381 376 77 40 302 1492 104 97 673 69 146 460 181 . 740 511 271 308 23 39 . 1058 565 423 842 419 216 563 830 3466 2365 1538 10883 Core 4710 | . 73 . . 128 192 126 79 82 35 19 57 302 22 12 141 . 20 57 . . 91 31 49 116 . . . 178 84 48 128 58 10 7 179 266 120 62 1938 Absorbed by Shields 3245 | . . . . . . . . 26 . . 14 . . . . . . . . . . 217 255 . . . . . . . . . . 21 . 17 104 989 1602 Redirected to Core 9 | . . . . . . . . . . . . . . . . . . . . . . . . . . . . . . . . . . 7 2 . . . . Core Remaining (%) 58 | 100 . . . 19 . . . 12 . . . . . 36 . . . 74 . . . . . . 71 . . . . . 61 . . 94 . . 61 . . Volleys Fired 1158 | 4 59 . . 36 35 37 23 55 23 6 7 30 . 15 8 6 2 19 1 5 6 28 44 13 3 15 27 36 24 11 36 19 16 54 37 36 133 80 169 Largest 3 | 2 2 . . 2 2 2 2 2 1 1 2 1 . 1 1 1 1 1 1 1 1 1 1 1 1 1 1 1 1 1 1 1 1 1 2 1 2 2 3 Hottest 300 | 60 75 . . 56 90 106 88 89 45 30 66 39 . 39 43 43 39 43 43 75 75 80 81 81 43 81 80 81 80 81 240 81 94 113 200 100 200 200 300 Shots Fired 1344 | 8 105 . . 59 68 60 24 70 23 6 9 30 . 15 8 6 2 18 1 5 6 28 44 13 3 15 27 36 24 11 34 19 16 54 38 36 158 81 184 Gun 558 | 8 46 . . 45 63 48 19 48 15 . . . . . . . . . . 5 3 . 7 11 . . 7 . . 4 7 . . . 1 . 120 39 62 Cannon 225 | . 59 . . . 3 . 1 . . . . . . . . . . . . . . . 22 2 . 3 . 7 . 1 . 1 2 32 10 26 19 10 27 Launcher 413 | . . . . 14 2 12 4 22 4 6 9 30 . 10 3 6 2 18 1 . 3 28 15 . 3 11 20 19 24 6 18 4 . 6 3 . 3 22 85 Special 148 | . . . . . . . . . 4 . . . . 5 5 . . . . . . . . . . 1 . 10 . . 9 14 14 16 24 10 16 10 10 Kinetic 357 | 4 94 . . 45 55 45 19 20 9 . . . . . . . . . . . . . 7 11 . . . . . . . . . . . 11 13 10 14 Thermal 75 | . . . . . 7 2 1 16 . . . . . . . . . . . 5 3 . . . . . 7 . . 4 7 . . 1 5 . 4 . 13 Explosive 261 | . . . . 14 2 12 3 12 4 6 9 30 . 10 3 6 2 18 1 . 3 8 3 . 3 11 20 19 18 6 3 4 . 5 3 . 3 12 8 Electromagnetic 282 | 4 11 . . . 4 1 1 22 6 . . . . . . . . . . . . 20 34 2 . 3 . 7 6 1 15 1 2 32 6 15 2 10 77 Slashing 221 | . . . . . . . . . . . . . . . . . . . . . . . . . . . . . . . . . . . . . 120 39 62 Robot Hit Streak 28 | 4 14 . . 8 15 8 6 15 12 1 3 5 . 7 4 2 3 8 . 3 3 14 6 5 . 7 12 6 8 5 10 4 6 8 9 7 28 15 17 Robot Miss Streak 11 | 2 2 . . 4 3 3 2 2 2 . 1 3 . 2 1 . . . . 1 2 1 5 1 . . 3 2 1 1 1 2 2 1 3 11 5 11 5 Penetration Max 2 | . . . . . . . . 1 . . . . . . . . . . . . . . 1 . . . . . . . . . . . . . 1 2 2 Secondary Targets 2 | . . . . 1 . 1 . . . . . . . . . . . . . . . . . . . . . . . . . . . . . . . . . Max Gunslinging Chain 1 | . . . . 1 . 1 . . . . . . . . . . . . . . . . . . . . . . . . . . . . . . . . . Shots Hit Robots 1512 | 6 73 . . 31 71 35 39 46 18 1 30 47 1 14 73 1 14 21 30 3 37 64 17 18 5 49 8 87 8 26 16 33 20 34 63 68 174 88 143 Core Hits 1254 | 2 32 . . 28 33 24 22 35 10 2 15 52 . 11 40 13 12 23 10 . 17 40 32 9 4 39 12 68 26 23 13 22 2 14 38 31 72 85 343 Critical Hits 146 | . 1 . . . 3 . . . . . 2 2 . . 5 . . . 1 . 1 1 3 3 . 1 . 2 . . . 1 4 1 5 14 27 22 47 Critical Kills 53 | . . . . . 2 . . . . . 1 1 . . 2 . . . . . . 1 1 1 . 1 . . . . . 1 . . 4 5 7 11 15 Critical Parts Destroyed 82 | . 1 . . . 1 . . . . . 1 1 . . 3 . . . 1 . 1 . 1 1 . . . 2 . . . . 4 1 1 8 15 11 29 Melee Attacks 2922 | . 21 5 . . 47 . 106 . 78 . 148 44 8 11 288 2 123 49 134 . 111 50 7 9 31 180 5 278 9 193 12 234 58 1 221 97 190 120 52 Kinetic 3 | . . . . . . . . . . . . . . . . . . . . . . . . . . . . . . . . . . . . 3 . . . Impact . | . . . . . . . . . . . . . . . . . . . . . . . . . . . . . . . . . . . . . . . . Slashing 1927 | . 21 5 . . 47 . 106 . 77 . 147 44 8 11 288 2 121 35 133 . 104 31 7 9 31 174 5 196 5 124 . . 18 . 1 1 32 102 42 Piercing 911 | . . . . . . . . . . . . . . . . . . . . . . . . . . . . 54 4 68 12 233 40 1 220 93 158 18 10 Sneak Attacks 279 | . . . . . 2 . 5 . 7 . 10 . . 6 31 . 7 7 12 . 14 27 . 4 3 27 2 49 . 9 . 9 . . 20 4 8 9 7 Combat Hostiles 9 | . . . . . 1 . 1 . . . . . . . . . . . . . . . . . . . . . . . . . . . . . 4 3 . Follow-up Attacks 23 | . . . . . 1 . 3 . . . . 2 . . . . . . . . . . . . . . . 1 . . . 2 . . 2 4 1 6 1 Damage Inflicted 107807 | 52 1250 . . 1308 1822 1056 1680 1931 998 606 1992 5042 46 1110 5251 1969 1077 1675 1827 64 1926 3270 2544 1080 617 5090 3570 7070 1857 2622 1017 2597 1085 1432 4913 2961 9727 6837 16836 Guns 10913 | 52 534 . . 425 659 452 220 694 115 . . . . . . . . . . 64 43 . 137 227 . . 97 . . 155 23 . . . . . 4386 797 1833 Cannons 3968 | . 716 . . . 52 . 24 . . . . . . . . . . . . . . . 105 59 . 116 . 176 . . . 37 . 852 221 514 167 163 766 Explosions 47100 | . . . . 883 251 604 291 1237 99 606 515 3405 . 605 917 1969 203 1409 132 . 449 1873 2183 . 151 1739 3236 3569 1726 635 994 816 . 580 515 158 747 2814 11789 Melee 45783 | . . . . . 860 . 1145 . 741 . 1477 1637 46 505 4334 . 874 266 1695 . 1434 1397 119 794 466 3235 237 3325 131 1832 . 1744 1085 . 4177 2289 4427 3063 2448 Ramming 43 | . . . . . . . . . 43 . . . . . . . . . . . . . . . . . . . . . . . . . . . . . . Kinetic 4368 | 28 1127 . . 425 541 412 220 261 45 . . . . . . . . . . . . . 137 227 . . . . . . . . . . . 253 145 163 384 Thermal 7096 | . . . . . 192 40 24 497 37 . . . . . . . . . 113 64 43 126 205 . . 59 97 635 29 364 95 . . 83 60 158 . . 4175 Explosive 29887 | . . . . 883 179 604 291 411 62 606 515 3405 . 605 917 1969 203 1409 19 . 449 1033 954 . 17 1586 3236 2934 1349 426 215 816 . 467 515 . 747 2008 1057 Electromagnetic 13756 | 24 123 . . . 50 . . 762 70 . . . . . . . . . . . . 714 1129 59 134 210 . 176 348 . 707 37 . 882 161 403 22 806 6939 Impact . | . . . . . . . . . . . . . . . . . . . . . . . . . . . . . . . . . . . . . . . . Slashing 37226 | . . . . . 860 . 1145 . 741 . 1477 1637 46 505 4334 . 874 266 1695 . 1434 1397 119 794 466 3235 237 1688 131 68 . . 1036 . 77 . 6006 3086 3872 Piercing 15431 | . . . . . . . . . . . . . . . . . . . . . . . . . . . . 1637 . 1764 . 1744 49 . 4100 2147 2807 774 409 Highest Corruption 20 | . . . . . . . 3 3 . . 1 1 1 1 11 9 9 9 . . 5 5 . . . . 12 15 2 5 2 . 1 1 7 2 4 4 20 Average Corruption 4 | . . . . . . . 2 3 . . 1 1 1 1 10 9 9 6 . . 4 3 . . . . 7 5 1 3 1 . 1 1 2 1 1 1 6 Corruption Purged 77 | . . . . . . . . . . . . . . . 2 . . 9 . . . 6 . . . . . 16 . 8 . . . . 10 2 8 10 6 Effects 619 | . . . . . . . 23 16 . . 3 3 1 1 192 6 53 33 . . 31 13 . . . . 6 130 1 22 9 . 1 4 21 3 19 6 22 Message Errors 132 | . . . . . . . 6 6 . . 2 1 . . 19 . 11 11 . . 8 2 . . . . 2 23 1 6 2 . . 3 11 1 10 3 4 Matter Fused 84 | . . . . . . . 4 2 . . . . . . 30 1 12 1 . . 4 2 . . . . 1 18 . 6 . . . . . . 2 1 . Heat Flow Errors 55 | . . . . . . . 3 1 . . . . . . 16 2 3 7 . . 6 2 . . . . . 11 . 1 1 . . . 2 . . . . Energy Discharges 70 | . . . . . . . 2 2 . . 1 . 1 1 17 1 4 3 . . 8 3 . . . . 1 12 . 2 4 . . 1 1 1 2 1 2 Parts Rejected 5 | . . . . . . . . . . . . . . . . . 1 . . . . 1 . . . . . 1 . 1 . . . . . . . . 1 Data Loss (minor) 72 | . . . . . . . 4 2 . . . 2 . . 21 1 7 7 . . 3 2 . . . . . 13 . 3 . . . . 2 . 1 1 3 Data Loss (major) 16 | . . . . . . . . . . . . . . . 4 . 4 . . . 1 1 . . . . . 5 . 1 . . . . . . . . . Alerts 7 | . . . . . . . . . . . . . . . 4 . . . . . . . . . . . . 1 . . . . . . . . . . 2 Misdirections 90 | . . . . . . . . . . . . . . . 54 . . . . . . . . . . . . 33 . . . . . . . . . . 3 Targeting Errors 85 | . . . . . . . 4 3 . . . . . . 27 1 11 3 . . 1 . . . . . 2 13 . 2 . . 1 . 5 1 4 . 7 Weapon Failures 3 | . . . . . . . . . . . . . . . . . . 1 . . . . . . . . . . . . 2 . . . . . . . . Overload Shots 5 | . . . . . . . . . . . . . . . . . . . . . . . . . . . . . . . 5 . . . . . . . . Overflow Damage 8474 | . 5 . . 10 142 . 137 . 151 . 228 270 . 39 768 95 206 51 381 . 232 609 31 105 287 1118 . 925 36 138 . 274 158 67 439 118 289 724 441 Projectiles 84 | . 5 . . . . . . . . . . . . . . . . . . . . . . . . 5 . 3 . . . . . 36 . 35 . . . Explosions 1520 | . . . . 10 8 . . . 17 . 45 135 . . 21 95 . 50 91 . 2 185 31 . . 58 . 209 36 127 . 7 . 31 . . . 235 127 Melee 6870 | . . . . . 134 . 137 . 134 . 183 135 . 39 747 . 206 1 290 . 230 424 . 105 287 1055 . 713 . 11 . 267 158 . 439 83 289 489 314 Knockbacks 28 | . 8 . . . 3 . . . . . . . . . . . . . . . . . . . . . . . . . . . . . . 2 1 4 10 Impact . | . . . . . . . . . . . . . . . . . . . . . . . . . . . . . . . . . . . . . . . . Kinetic 26 | . 7 . . . 2 . . . . . . . . . . . . . . . . . . . . . . . . . . . . . . 2 1 4 10 Secondary 2 | . 1 . . . 1 . . . . . . . . . . . . . . . . . . . . . . . . . . . . . . . . . . Self-Inflicted Damage 840 | . . . . 57 44 . . . 21 . 54 53 . 19 . 44 . 28 113 . . . . . . . . . . . 18 . . . . . . . 389 Shots 33 | . . . . 2 2 . . . . . 1 2 . 1 . 1 . 2 1 . . . . . . . . . . . 1 . . . . . . . 20 Rammed 1 | . . . . . . . . . 1 . . . . . . . . . . . . . . . . . . . . . . . . . . . . . . Targets Rammed 1 | . . . . . . . . . 1 . . . . . . . . . . . . . . . . . . . . . . . . . . . . . . Kicked . | . . . . . . . . . . . . . . . . . . . . . . . . . . . . . . . . . . . . . . . . Crushed . | . . . . . . . . . . . . . . . . . . . . . . . . . . . . . . . . . . . . . . . . Highest Temperature 713 | . 57 . . 30 219 22 180 110 7 1 48 44 8 26 334 134 213 276 4 122 276 189 198 94 12 104 24 270 54 285 234 154 . 314 265 244 290 300 713 Average Temperature 67 | . 20 . . 10 111 9 91 39 4 1 21 12 6 4 72 62 68 80 3 61 67 51 86 38 6 18 10 73 19 63 88 34 . 77 73 60 77 80 183 Received Heat Transfer 4157 | . 144 . . 66 639 324 72 180 . 9 24 399 27 6 24 . 27 126 18 . . 86 16 15 9 21 . 66 12 48 66 39 42 95 45 189 117 89 1117 Effects 28 | . . . . . 1 . . . . . . . . . 4 . . . . . 4 . . . . . . . . . . . . . 2 1 . 1 15 Shutdowns 5 | . . . . . . . . . . . . . . . . . . . . . . . . . . . . . . . . . . . . . . . 5 Energy Bleed 9 | . . . . . 1 . . . . . . . . . 3 . . . . . 1 . . . . . . . . . . . . . 2 1 . . 1 Interference 7 | . . . . . . . . . . . . . . . . . . . . . 3 . . . . . . . . . . . . . . . . 1 3 Matter Decay 1 | . . . . . . . . . . . . . . . . . . . . . . . . . . . . . . . . . . . . . . . 1 Short Circuit 5 | . . . . . . . . . . . . . . . 1 . . . . . . . . . . . . . . . . . . . . . . . 4 Damage (core) 1 | . . . . . . . . . . . . . . . . . . . . . . . . . . . . . . . . . . . . . . . 1 Siege Activations . | . . . . . . . . . . . . . . . . . . . . . . . . . . . . . . . . . . . . . . . . Robots Corrupted 61 | . . . . . . . . 4 . . . . . . . . . . . . . 1 6 . . 1 . . . . 1 . . 4 . 1 . 5 38 Combat Hostiles 55 | . . . . . . . . 1 . . . . . . . . . . . . . 1 6 . . . . . . . 1 . . 3 . 1 . 5 37 Parts Fried 122 | . . . . . . . . 2 . . . . . . . . . . . . . 7 8 . . 1 . 3 2 . 3 . . 9 1 3 . 5 78 Impact Corruptions . | . . . . . . . . . . . . . . . . . . . . . . . . . . . . . . . . . . . . . . . . Robots Melted 17 | . . . . . . . . . . . . . . . . . . . . . . . . . . . . . . . . . . . . . . . 17 Combat Hostiles 17 | . . . . . . . . . . . . . . . . . . . . . . . . . . . . . . . . . . . . . . . 17 Parts Melted 62 | . . . . . 1 . . . . . . . . . . . . . . . . . . . . . . 1 . 1 . . . . . . . 4 55 Heat Transferred 16655 | . . . . . 322 74 37 699 50 . . . . . . . . . 50 111 74 200 100 . . 50 148 400 50 248 87 . . 100 37 50 . . 13768 Parts Sabotaged 5 | . . . . . . . . . . . . . . . . . . . . . . . . . . . . . . . . . . . . . . . 5 Parts Stolen . | . . . . . . . . . . . . . . . . . . . . . . . . . . . . . . . . . . . . . . . . Parts Stripped . | . . . . . . . . . . . . . . . . . . . . . . . . . . . . . . . . . . . . . . . . Power Chain Reactions 29 | . . . . . 1 . . 5 1 . . . . . . . . . . . . 2 2 . . . . . 1 . 1 . . 1 . 1 . . 14 Missiles Intercepted . | . . . . . . . . . . . . . . . . . . . . . . . . . . . . . . . . . . . . . . . . Alert | -11 -10 -10 -10 -9 -8 -8 -8 -8 -7 -7 -7 -7 -7 -7 -6 -6 -6 -6 -5 -5 -5 -5 -5 -5 -5 -4 -4 -4 -4 -4 -4 -3 -3 -3 -2 -2 -2 -1 -1 ------- Run | Scr Mat Min Exi Min Mat Gar Mat Gar Fac Was Fac Gar Fac Gar Fac Was Fac Gar Fac Was Fac Ext Cet Arc Hub Fac Was Fac Gar Fac Gar Res Qua Gar Res Tes Sec Acc Com Peak Influence 3662 | 5 365 102 . 340 459 507 457 737 448 80 506 961 641 746 552 227 504 940 603 200 444 377 514 417 385 607 326 1399 1628 1180 1163 811 405 776 760 643 861 1692 3662 Average Influence 425 | 1 250 102 . 283 190 339 317 551 196 42 101 724 519 629 241 208 197 725 357 163 92 60 263 320 259 303 284 407 1327 895 1025 482 92 539 393 307 365 1047 2304 Maximum Alert Level 5 | . 1 . . 1 2 2 2 3 2 . 2 3 2 3 2 1 2 3 2 1 2 1 2 2 1 2 1 4 5 4 4 3 2 3 3 2 3 5 5 Low Security (%) 21 | 100 17 100 . 17 66 13 . . 60 100 86 . . . 34 10 62 . 1 51 92 92 39 7 37 40 8 35 . . . 12 90 22 6 45 41 . . Level 1 17 | . 82 . . 82 28 68 89 5 26 . . 3 . . 48 89 15 13 62 48 3 7 36 69 62 24 91 20 . . . 33 6 3 53 18 7 . . Level 2 31 | . . . . . 5 18 10 64 13 . 13 42 100 56 16 . 22 36 36 . 4 . 23 23 . 35 . 31 . 32 . 45 2 29 36 36 42 26 . Level 3 15 | . . . . . . . . 30 . . . 54 . 43 . . . 50 . . . . . . . . . 1 33 42 57 8 . 43 3 . 8 33 4 Level 4 8 | . . . . . . . . . . . . . . . . . . . . . . . . . . . . 11 51 25 42 . . . . . . 35 17 Level 5 1 | . . . . . . . . . . . . . . . . . . . . . . . . . . . . . . . . . . . . . . 4 14 High Security 4 | . . . . . . . . . . . . . . . . . . . . . . . . . . . . . 15 . . . . . . . . . 63 Max Security . | . . . . . . . . . . . . . . . . . . . . . . . . . . . . . . . . . . . . . . . . Squads Dispatched 202 | . 3 . . . 2 . 2 . 9 . 6 . 3 . 14 . 11 . 5 . 6 1 . . 3 13 . 16 . 12 . 10 3 . 6 9 20 13 35 Investigation 45 | . 2 . . . 1 . . . 3 . 1 . 2 . 7 . 6 . 2 . 5 . . . . 2 . 3 . 1 . 2 . . . 1 5 2 . Extermination 67 | . . . . . . . . . 4 . 3 . 1 . 4 . 1 . . . 1 . . . 1 7 . 7 . 6 . 5 3 . 4 5 9 5 1 Reinforcement 30 | . 1 . . . 1 . 2 . 2 . 2 . . . 2 . 3 . 2 . . 1 . . 1 3 . 2 . 1 . 1 . . . 2 3 . 1 Assault 57 | . . . . . . . . . . . . . . . . . 1 . 1 . . . . . 1 1 . 4 . 4 . 2 . . 2 1 3 4 33 Garrison 3 | . . . . . . . . . . . . . . . 1 . . . . . . . . . . . . . . . . . . . . . . 2 . Intercept . | . . . . . . . . . . . . . . . . . . . . . . . . . . . . . . . . . . . . . . . . Construction Impeded 6 | . . . . . 1 . 1 . . . . . . . . . . . . . . 1 . . . 1 . 1 . . . . . . . 1 . . . Haulers Reinforced 9 | . . . . . . . . . . . 2 . . . 1 . 1 . 2 . . . . . . 2 . . . . . . . . . . 1 . . Stealth | -11 -10 -10 -10 -9 -8 -8 -8 -8 -7 -7 -7 -7 -7 -7 -6 -6 -6 -6 -5 -5 -5 -5 -5 -5 -5 -4 -4 -4 -4 -4 -4 -3 -3 -3 -2 -2 -2 -1 -1 --------- Run | Scr Mat Min Exi Min Mat Gar Mat Gar Fac Was Fac Gar Fac Gar Fac Was Fac Gar Fac Was Fac Ext Cet Arc Hub Fac Was Fac Gar Fac Gar Res Qua Gar Res Tes Sec Acc Com Distress Signals 56 | . 3 1 . . 5 . 2 . 1 . 1 . 1 . 6 . . . 2 . . 2 . . 5 3 . 1 . 3 . . . . 5 2 5 2 6 Communications Jammed 190 | . . . . . . . . . . . . . . . . . . . . . . . . . . . . 17 . 12 . 2 . . 74 3 5 54 23 Distress Signals 187 | . . . . . . . . . . . . . . . . . . . . . . . . . . . . 17 . 12 . 2 . . 74 . 5 54 23 Times Spotted 1142 | . 37 2 . 20 28 11 38 14 22 6 25 31 8 7 56 11 16 20 12 4 22 20 12 9 5 17 5 59 11 46 16 33 26 25 48 32 60 83 245 Peak Tracking Total 37 | . 6 2 . 4 9 3 4 4 5 6 7 6 8 7 8 6 4 6 6 3 4 4 8 2 7 5 3 10 4 6 5 5 10 5 8 5 10 9 37 Tactical Retreats 184 | . 2 1 . . 6 . 9 . 4 . 4 6 1 2 13 2 4 1 6 1 1 1 3 . 1 5 1 12 . 14 3 12 4 1 12 6 13 18 15 Traps | -11 -10 -10 -10 -9 -8 -8 -8 -8 -7 -7 -7 -7 -7 -7 -6 -6 -6 -6 -5 -5 -5 -5 -5 -5 -5 -4 -4 -4 -4 -4 -4 -3 -3 -3 -2 -2 -2 -1 -1 ------- Run | Scr Mat Min Exi Min Mat Gar Mat Gar Fac Was Fac Gar Fac Gar Fac Was Fac Gar Fac Was Fac Ext Cet Arc Hub Fac Was Fac Gar Fac Gar Res Qua Gar Res Tes Sec Acc Com Traps Triggered 71 | . 1 . . . 1 1 2 2 1 . 3 2 . 4 3 . 2 . 3 . . . . . . 1 . 5 2 3 8 2 1 2 5 1 3 5 8 Indirectly 13 | . . . . . . . . . . . . . . . . . . . . . . . . . . . . . 1 . 5 . . . . . . . 7 Trap Hack Attempts 142 | . . . . . . . . . 13 . . . . . . . 6 10 . . 18 19 . . . 37 . 4 . 14 . 21 . . . . . . . Triggered 1 | . . . . . . . . . . . . . . . . . . . . . . . . . . 1 . . . . . . . . . . . . . Disarmed 28 | . 5 . . . . . . . . . . . . . . . 2 . . . 4 6 . . . 1 . . . 10 . . . . . . . . . Reprogrammed 60 | . . . . . . . . . 2 . . . . . . . . 1 . . . 5 . . . 15 . 7 . 4 . 20 6 . . . . . . Reused 28 | . . . . . . . . . 1 . . . . . . . . . . . . 1 . . . 7 . 6 . 4 . 9 . . . . . . . Traps Extracted . | . . . . . . . . . . . . . . . . . . . . . . . . . . . . . . . . . . . . . . . . Installed . | . . . . . . . . . . . . . . . . . . . . . . . . . . . . . . . . . . . . . . . . Triggered 29 | . . . . . . . . . 1 . . . . . . . . . . . . 2 . . . 7 . 6 . 4 . 9 . . . . . . . Machines | -11 -10 -10 -10 -9 -8 -8 -8 -8 -7 -7 -7 -7 -7 -7 -6 -6 -6 -6 -5 -5 -5 -5 -5 -5 -5 -4 -4 -4 -4 -4 -4 -3 -3 -3 -2 -2 -2 -1 -1 ---------- Run | Scr Mat Min Exi Min Mat Gar Mat Gar Fac Was Fac Gar Fac Gar Fac Was Fac Gar Fac Was Fac Ext Cet Arc Hub Fac Was Fac Gar Fac Gar Res Qua Gar Res Tes Sec Acc Com Machines Disabled 115 | . 1 . . . . 1 6 1 . . . 4 1 2 . . 1 7 2 . 1 2 3 1 5 15 . 16 5 1 1 . 4 4 1 7 18 3 2 Max in Single Turn 9 | . 1 . . . . 1 4 1 . . . 2 . 1 . . 1 1 2 . 1 1 1 1 3 8 . 9 2 1 1 . 1 1 1 1 1 1 1 Garrison Access 27 | . . . . . . . . . 3 . 1 . . . 3 . 2 . 3 . 2 . . . 2 3 . 1 . 1 . 1 . . 3 1 . 1 . Garrison Relay 12 | . . . . . . 1 . 1 . . . 1 . 1 . . . 3 . . . . . . . . . . 1 . 1 . . 3 . . . . . Phase Generator 1 | . . . . . . . . . . . . . . . . . . 1 . . . . . . . . . . . . . . . . . . . . . Network Hub 2 | . . . . . . . . . . . . . . . . . . . . . . . . . 2 . . . . . . . . . . . . . . Machines Sabotaged . | . . . . . . . . . . . . . . . . . . . . . . . . . . . . . . . . . . . . . . . . Garrisons Compromised . | . . . . . . . . . . . . . . . . . . . . . . . . . . . . . . . . . . . . . . . . Overloaded Fab Kills . | . . . . . . . . . . . . . . . . . . . . . . . . . . . . . . . . . . . . . . . . Fab Network Shutdowns 8 | . . . . . . . . . . . 1 . . . . . 1 . . . 1 . . . . 1 . 1 . 1 . 1 . . . 1 . . . Hacking | -11 -10 -10 -10 -9 -8 -8 -8 -8 -7 -7 -7 -7 -7 -7 -6 -6 -6 -6 -5 -5 -5 -5 -5 -5 -5 -4 -4 -4 -4 -4 -4 -3 -3 -3 -2 -2 -2 -1 -1 --------- Run | Scr Mat Min Exi Min Mat Gar Mat Gar Fac Was Fac Gar Fac Gar Fac Was Fac Gar Fac Was Fac Ext Cet Arc Hub Fac Was Fac Gar Fac Gar Res Qua Gar Res Tes Sec Acc Com Machines Accessed 394 | . 8 . 1 . 6 . 12 . 23 . 24 . 4 . 28 . 23 . 24 . 23 11 4 1 10 22 . 30 . 25 . 17 12 . 25 14 21 20 6 Terminals 250 | . 6 . . . 5 . 9 . 13 . 16 . . . 15 . 13 . 15 . 15 10 4 . 9 13 . 15 . 14 . 12 10 . 13 10 18 10 5 Fabricators 33 | . . . . . . . . . 3 . 3 . 2 . 3 . 3 . . . 4 . . . . 2 . 3 . 1 . 2 . . 3 1 . 3 . Repair Stations 26 | . 1 . . . . . 1 . . . 2 . . . 2 . 2 . 1 . 1 . . . . 2 . 3 . 3 . 2 1 . 2 1 . 2 . Recycling Units 33 | . 1 . . . . . . . 4 . 1 . 1 . 3 . 2 . 3 . . 1 . . . 2 . 4 . 4 . . . . 3 . . 3 1 Scanalyzers 12 | . . . . . . . 1 . . . . . . . 2 . . . 2 . 1 . . . . . . 1 . 1 . . . . 1 1 2 . . Garrison Access 38 | . . . . . 1 . 1 . 3 . 2 . 1 . 3 . 3 . 3 . 2 . . . 1 3 . 4 . 2 . 1 1 . 3 1 1 2 . Total Hacks 1347 | . 19 . 1 . 19 . 37 . 47 . 48 . 9 . 79 . 58 . 48 . 56 27 12 25 34 99 . 101 . 92 . 92 49 . 103 79 92 90 31 Successful 847 | . 13 . 1 . 10 . 20 . 35 . 39 . 8 . 58 . 42 . 38 . 44 22 10 25 20 65 . 75 . 52 . 53 31 . 54 39 46 37 10 Failed 494 | . 5 . . . 9 . 17 . 11 . 9 . 1 . 21 . 15 . 10 . 11 5 2 . 14 33 . 26 . 40 . 38 18 . 49 40 46 53 21 Catastrophic 68 | . . . . . . . . . 1 . 1 . . . 4 . 1 . 3 . . . . . 1 2 . 4 . 7 . 4 3 . 3 3 10 11 10 Database Lockouts 8 | . 1 . . . . . . . 1 . . . . . . . 2 . . . 2 . . . . 1 . . . . . 1 . . . . . . . Manual 807 | . 12 . 1 . 16 . 23 . 29 . 30 . 1 . 39 . 34 . 26 . 34 17 12 . 26 70 . 66 . 55 . 54 32 . 34 59 67 44 26 Terminals 956 | . 15 . . . 18 . 26 . 30 . 33 . . . 42 . 39 . 32 . 39 26 12 . 33 75 . 67 . 64 . 71 44 . 63 67 84 49 27 Fabricators 121 | . . . . . . . . . 10 . 7 . 6 . 14 . 10 . . . 10 . . . . 7 . 11 . 3 . 5 . . 18 6 . 14 . Repair Stations 100 | . 2 . . . . . 3 . . . 5 . . . 6 . 4 . 4 . 3 . . . . 10 . 10 . 13 . 15 3 . 8 4 . 10 . Recycling Units 52 | . 2 . . . . . . . 4 . 1 . 1 . 4 . 2 . 4 . . 1 . . . 2 . 5 . 7 . . . . 8 . . 7 4 Scanalyzers 33 | . . . . . . . 7 . . . . . . . 7 . . . 5 . 2 . . . . . . 1 . 1 . . . . 3 1 6 . . Garrison Access 59 | . . . . . 1 . 1 . 3 . 2 . 2 . 6 . 3 . 3 . 2 . . . 1 5 . 7 . 4 . 1 2 . 3 1 2 10 . Terminal Hacks 343 | . 7 . 1 . 6 . 7 . 10 . 13 . . . 13 . 16 . 11 . 16 13 5 25 8 28 . 27 . 15 . 25 18 . 19 18 24 13 5 Record 28 | . . . . . . . . . . . . . . . . . . . . . . . . 25 1 . . . . . . 1 . . . . . . 1 Part Schematic 27 | . 1 . . . 1 . . . 2 . 1 . . . 1 . 4 . . . 2 . . . . 7 . 3 . . . 2 1 . . 2 . . . Robot Schematic 3 | . . . . . . . . . . . 1 . . . . . . . . . . . . . . . . 1 . 1 . . . . . . . . . Robot Analysis 7 | . . . . . . . . . . . 1 . . . . . 1 . 1 . . . . . . . . 1 . . . . 1 . . 1 1 . . Prototype ID Bank 3 | . . . . . . . . . . . . . . . 1 . . . 1 . 1 . . . . . . . . . . . . . . . . . . Open Door 9 | . . . . . . . . . . . . . . . . . . . . . . 5 1 . . . . . . . . . . . . . 3 . . Level Access Points 2 | . . . . . . . . . . . . . . . . . . . . . . . . . 1 . . . . . . . . . . 1 . . . Branch Access Points 4 | . . . . . . . . . . . . . . . . . . . . . . . . . . . . . . . . 2 . . 1 . . 1 . Machine Index 7 | . . . . . . . . . 1 . . . . . . . 1 . . . . . . . . 1 . 1 . 1 . 1 . . 1 . . . . Terminal Index 21 | . 1 . . . . . 1 . 1 . 1 . . . 1 . 1 . 1 . 1 1 1 . 1 1 . 1 . 1 . 1 1 . 1 1 1 1 1 Fabricator Index 6 | . . . . . . . . . . . . . . . 1 . . . . . 1 . . . . 1 . . . . . 1 . . 1 . . 1 . Scanalyzer Index 1 | . . . . . . . . . . . . . . . . . . . . . . . . . . . . . . . . . 1 . . . . . . Garrison Index 3 | . . . . . . . . . . . . . . . . . . . . . . . . . 1 . . . . . . . . . . . 1 1 . Unreport Threat 47 | . . . . . 1 . . . . . . . . . 2 . . . 1 . 3 1 3 . 1 4 . 4 . 5 . 5 3 . 4 3 3 3 1 Locate Traps 24 | . . . . . 1 . 1 . . . . . . . 1 . . . 2 . . . . . . 1 . 3 . 2 . 1 3 . 4 1 2 2 . Disarm Traps 4 | . 1 . . . . . . . . . . . . . . . . . . . . 1 . . . . . . . 2 . . . . . . . . . Reprogram Traps 6 | . . . . . . . . . . . . . . . . . . . . . . . . . . 1 . 1 . . . 3 1 . . . . . . Recall Investigation 16 | . . . . . . . . . . . . . . . 1 . 3 . 1 . 2 . . . . 1 . 3 . . . 1 . . . 1 3 . . Recall Extermination 30 | . . . . . . . . . 1 . 2 . . . 2 . 1 . . . 1 . . . 1 5 . 4 . 2 . 2 2 . 2 2 3 . . Recall Reinforcements 12 | . . . . . . . . . 1 . . . . . 1 . . . . . . 2 . . 1 3 . 1 . . . 1 . . . 2 . . . Recall Assault 3 | . . . . . . . . . . . . . . . . . . . . . . . . . 1 . . . . 1 . 1 . . . . . . . Hauler Manifests 15 | . . . . . 1 . 1 . . . 1 . . . 1 . 1 . 1 . 1 1 . . . 1 . . . . . 1 1 . 1 1 1 1 . Registered Prototypes 2 | . . . . . . . . . . . . . . . . . . . . . 1 . . . . . . . . . . . 1 . . . . . . Zone Layout 62 | . 4 . . . 2 . 4 . 4 . 6 . . . 1 . 4 . 3 . 3 2 . . . 2 . 4 . . . 2 3 . 4 3 6 3 2 EX-Prototype ID Bank 1 | . . . 1 . . . . . . . . . . . . . . . . . . . . . . . . . . . . . . . . . . . . Fabricator Hacks 83 | . . . . . . . . . 7 . 6 . 6 . 11 . 7 . . . 9 . . . . 5 . 8 . 2 . 4 . . 9 5 . 4 . Network Status 1 | . . . . . . . . . . . . . 1 . . . . . . . . . . . . . . . . . . . . . . . . . . Load Schematic 39 | . . . . . . . . . 3 . 3 . 2 . 5 . 3 . . . 5 . . . . 2 . 4 . 1 . 2 . . 3 3 . 3 . Build 43 | . . . . . . . . . 4 . 3 . 3 . 6 . 4 . . . 4 . . . . 3 . 4 . 1 . 2 . . 6 2 . 1 . Repair Station Hacks 75 | . 2 . . . . . 1 . . . 5 . . . 6 . 4 . 4 . 2 . . . . 8 . 8 . 9 . 11 2 . 6 4 . 3 . Scan Component 41 | . 1 . . . . . 1 . . . 3 . . . 3 . 2 . 2 . 1 . . . . 4 . 4 . 5 . 6 1 . 3 2 . 3 . Repair 34 | . 1 . . . . . . . . . 2 . . . 3 . 2 . 2 . 1 . . . . 4 . 4 . 4 . 5 1 . 3 2 . . . Recycling Unit Hacks 32 | . 1 . . . . . . . 4 . 1 . 1 . 3 . 2 . 3 . . . . . . 2 . 4 . 4 . . . . 4 . . 2 1 Retrieve Components 32 | . 1 . . . . . . . 4 . 1 . 1 . 3 . 2 . 3 . . . . . . 2 . 4 . 4 . . . . 4 . . 2 1 Scanalyzer 23 | . . . . . . . 7 . . . . . . . 6 . . . 4 . 2 . . . . . . . . . . . . . 1 . 3 . . Insert Component 17 | . . . . . . . 4 . . . . . . . 4 . . . 4 . 1 . . . . . . . . . . . . . 1 . 3 . . Analyze 6 | . . . . . . . 3 . . . . . . . 2 . . . . . 1 . . . . . . . . . . . . . . . . . . Garrison Access Hacks 46 | . . . . . 1 . 1 . 3 . 2 . 1 . 4 . 3 . 3 . 2 . . . 1 5 . 5 . 4 . 1 2 . 3 1 1 3 . Unlock Access 9 | . . . . . 1 . 1 . . . 1 . 1 . 1 . 1 . . . . . . . . . . 1 . 1 . . 1 . . . . . . Seal Access 26 | . . . . . . . . . 3 . 1 . . . 3 . 2 . 3 . 2 . . . 1 3 . 1 . 1 . 1 . . 3 1 . 1 . Coupler Status 11 | . . . . . . . . . . . . . . . . . . . . . . . . . . 2 . 3 . 2 . . 1 . . . 1 2 . Unauthorized Hacks 599 | . 6 . . . 9 . 13 . 23 . 25 . 1 . 33 . 21 . 27 . 29 18 12 . 25 36 . 50 . 45 . 35 25 . 25 26 55 39 21 Terminals 219 | . 3 . . . 3 . 4 . 9 . 11 . . . 12 . 8 . 13 . 12 9 5 . 11 15 . 18 . 16 . 11 9 . 10 10 17 9 4 Track 69 | . 1 . . . . . 1 . 1 . 2 . . . 3 . 1 . 5 . 2 3 1 . 6 5 . 7 . 4 . 4 4 . 3 2 8 4 2 Assimilate 57 | . . . . . . . . . 4 . 4 . . . 5 . 2 . 4 . 6 . . . . 4 . 7 . 8 . 2 1 . 3 4 2 1 . Botnet 65 | . 2 . . . 3 . 2 . 3 . 3 . . . 3 . 4 . 3 . 3 3 2 . 2 4 . 3 . 3 . 3 4 . 3 3 4 3 2 Detonate 2 | . . . . . . . . . . . . . . . . . . . . . . . . . 2 . . . . . . . . . . . . . . Disrupt 12 | . . . . . . . 1 . . . 1 . . . . . . . . . . 2 2 . 1 1 . . . . . 1 . . . . 2 1 . Operators 14 | . . . . . . . . . 1 . 1 . . . 1 . 1 . 1 . 1 1 . . . 1 . 1 . 1 . 1 . . 1 1 1 . . Fabricators 16 | . . . . . . . . . 2 . 1 . . . 2 . 2 . . . 1 . . . . 2 . 2 . 1 . 1 . . 2 . . . . Report 14 | . . . . . . . . . 2 . 1 . . . 2 . 1 . . . 1 . . . . 2 . 2 . 1 . 1 . . 1 . . . . Siphon 1 | . . . . . . . . . . . . . . . . . . . . . . . . . . . . . . . . . . . 1 . . . . Haulers 1 | . . . . . . . . . . . . . . . . . 1 . . . . . . . . . . . . . . . . . . . . . . Repair Stations . | . . . . . . . . . . . . . . . . . . . . . . . . . . . . . . . . . . . . . . . . Recycling Units . | . . . . . . . . . . . . . . . . . . . . . . . . . . . . . . . . . . . . . . . . Scanalyzers 3 | . . . . . . . . . . . . . . . . . . . . . . . . . . . . 1 . 1 . . . . . 1 . . . Researchers 3 | . . . . . . . . . . . . . . . . . . . . . . . . . . . . 1 . 1 . . . . . 1 . . . Garrison Access 7 | . . . . . . . . . . . . . . . 1 . . . . . . . . . . . . 2 . . . . . . . . 1 3 . Reprogram 3 | . . . . . . . . . . . . . . . 1 . . . . . . . . . . . . . . . . . . . . . . 2 . Eject 4 | . . . . . . . . . . . . . . . . . . . . . . . . . . . . 2 . . . . . . . . 1 1 . Data Cores Recovered 1 | . . . . . . . . . . . . . . . . . 1 . . . . . . . . . . . . . . . . . . . . . . Used . | . . . . . . . . . . . . . . . . . . . . . . . . . . . . . . . . . . . . . . . . Hacking Detections 263 | . 3 . . . 4 . 10 . 13 . 18 . 3 . 18 . 14 . 15 . 18 8 2 . 6 12 . 11 . 16 . 15 8 . 18 10 17 18 6 Full Trace Events 30 | . 1 . . . . . . . 2 . 1 . 2 . 6 . 4 . 2 . 4 . . . . 1 . . . 1 . 1 . . . 1 3 1 . Feedback Events 7 | . . . . . . . . . 1 . 1 . . . 2 . . . 1 . 1 . . . . . . . . . . . . . . . . 1 . Corruption 2 | . . . . . . . . . . . 1 . . . . . . . . . . . . . . . . . . . . . . . . . . 1 . Hackware Fried 5 | . . . . . . . . . 1 . . . . . 2 . . . 1 . 1 . . . . . . . . . . . . . . . . . . Feedback Blocked . | . . . . . . . . . . . . . . . . . . . . . . . . . . . . . . . . . . . . . . . . Robot Schematics Acquired 3 | . . . . . . . . . . . 1 . . . . . . . . . . . . . . . . 1 . 1 . . . . . . . . . Robots Built 4 | . . . . . . . . . . . . . 2 . . . . . . . . . . . . . . 1 . 1 . . . . . . . . . Matter 1053 | . . . . . . . . . . . . . 252 . . . . . . . . . . . . . . 384 . 417 . . . . . . . . . Time 246 | . . . . . . . . . . . . . 67 . . . . . . . . . . . . . . 68 . 111 . . . . . . . . . Total Robot Build Rating 25 | . . . . . . . . . . . . . 8 . . . . . . . . . . . . . . 8 . 9 . . . . . . . . . Part Schematics Acquired 220 | . 1 . . . 1 . 3 . 2 . 1 . . . 3 . 4 . . . 3 . . . . 7 . 140 . . . 2 1 . . 12 40 . . Parts Built 49 | . . . . . . . . . 8 . 3 . 4 . 8 . 4 . . . 6 . . . . 4 . 2 . . . 2 . . 4 2 . 2 . Matter 9796 | . . . . . . . . . 848 . 570 . 424 . 1016 . 921 . . . 976 . . . . 980 . 640 . . . 834 . . 1563 768 . 256 . Time 3455 | . . . . . . . . . 265 . 237 . 106 . 402 . 288 . . . 296 . . . . 255 . 230 . . . 333 . . 592 409 . 42 . Total Part Build Rating 327 | . . . . . . . . . 48 . 15 . 24 . 46 . 23 . . . 37 . . . . 32 . 16 . . . 18 . . 36 16 . 16 . Parts Repaired 34 | . 1 . . . . . . . . . 2 . . . 3 . 2 . 2 . 1 . . . . 4 . 4 . 4 . 5 1 . 3 2 . . . Time 1502 | . 26 . . . . . . . . . 136 . . . 144 . 94 . 50 . 16 . . . . 168 . 241 . 230 . 172 33 . 74 118 . . . Parts Recycled . | . . . . . . . . . . . . . . . . . . . . . . . . . . . . . . . . . . . . . . . . Recycled Matter . | . . . . . . . . . . . . . . . . . . . . . . . . . . . . . . . . . . . . . . . . Retrieved Matter . | . . . . . . . . . . . . . . . . . . . . . . . . . . . . . . . . . . . . . . . . Retrieved Components 65 | . 1 . . . . . . . 21 . . . 3 . 2 . 4 . 6 . . . . . . 1 . 9 . 4 . . . . 13 . . 1 . Parts Scanalyzed 6 | . . . . . . . 3 . . . . . . . 2 . . . . . 1 . . . . . . . . . . . . . . . . . . Part Schematics Acquired 6 | . . . . . . . 3 . . . . . . . 2 . . . . . 1 . . . . . . . . . . . . . . . . . . Parts Damaged . | . . . . . . . . . . . . . . . . . . . . . . . . . . . . . . . . . . . . . . . . Bothacking | -11 -10 -10 -10 -9 -8 -8 -8 -8 -7 -7 -7 -7 -7 -7 -6 -6 -6 -6 -5 -5 -5 -5 -5 -5 -5 -4 -4 -4 -4 -4 -4 -3 -3 -3 -2 -2 -2 -1 -1 ------------ Run | Scr Mat Min Exi Min Mat Gar Mat Gar Fac Was Fac Gar Fac Gar Fac Was Fac Gar Fac Was Fac Ext Cet Arc Hub Fac Was Fac Gar Fac Gar Res Qua Gar Res Tes Sec Acc Com Used RIF Installer 7 | . . . . . . 1 . 1 . . . 1 . 1 . . . 1 . . . . . . . . . . . . 1 . . 1 . . . . . Coupler Efficiency 2 | . . . . . . . . 1 . . . . . 1 . . . . . . . . . . . . . . . . . . . . . . . . . Robot Detection 1 | . . . . . . . . . . . . . . . . . . 1 . . . . . . . . . . . . . . . . . . . . . Program Shield 1 | . . . . . . . . . . . . 1 . . . . . . . . . . . . . . . . . . . . . . . . . . . Autoassimilate 2 | . . . . . . . . . . . . . . . . . . . . . . . . . . . . . . . 1 . . 1 . . . . . Robots Hacked 71 | . . . . . . . . . 2 . . . . 3 2 . . 4 1 . 1 . . . . 5 . 7 . . 4 4 4 8 12 3 5 5 1 Non-combat 27 | . . . . . . . . . 1 . . . . . 2 . . . 1 . 1 . . . . 5 . . . . . 4 1 . 6 . 1 5 . Combat 44 | . . . . . . . . . 1 . . . . 3 . . . 4 . . . . . . . . . 7 . . 4 . 3 8 6 3 4 . 1 Autoassimilated 1 | . . . . . . . . . . . . . . . . . . . . . . . . . . . . . . . . . . . 1 . . . . Robot Hacks Applied 115 | . . . . . . . . . 2 . . . . 3 2 . . 4 1 . 4 . . . . 5 . 32 . . 4 8 6 8 13 4 12 6 1 parse_system 1 | . . . . . . . . . . . . . . . . . . . . . . . . . . . . 1 . . . . . . . . . . . start_evac 1 | . . . . . . . . . . . . . . . . . . . . . 1 . . . . . . . . . . . . . . . . . . find_chute 7 | . . . . . . . . . 1 . . . . . 2 . . . . . . . . . . 4 . . . . . . . . . . . . . drop_inventory 5 | . . . . . . . . . . . . . . . . . . . . . . . . . . . . . . . . 1 . . 2 . 1 1 . find_recycling 1 | . . . . . . . . . . . . . . . . . . . 1 . . . . . . . . . . . . . . . . . . . . deconstruct_bot 2 | . . . . . . . . . . . . . . . . . . . . . . . . . . . . . . . . . . . . . . 2 . check_alert 1 | . . . . . . . . . . . . . . . . . . . . . . . . . . 1 . . . . . . . . . . . . . purge_threat 1 | . . . . . . . . . . . . . . . . . . . . . 1 . . . . . . . . . . . . . . . . . . block_reporting 3 | . . . . . . . . . . . . . . . . . . . . . . . . . . . . . . . . . 1 . 2 . . . . recall_investigation 2 | . . . . . . . . . . . . . . . . . . . . . 1 . . . . . . . . . . 1 . . . . . . . map_route 6 | . . . . . . . . . . . . . . . . . . . . . . . . . . . . . . . . 2 . . 2 . . 2 . mark_security 1 | . . . . . . . . . . . . . . . . . . . . . . . . . . . . . . . . 1 . . . . . . . disable_scanner 3 | . . . . . . . . . . . . . . . . . . . . . . . . . . . . . . . . . 2 . . . 1 . . locate_prototypes 3 | . . . . . . . . . . . . . . . . . . . . . . . . . . . . . . . . . 1 . . 1 1 . . report_prototypes 7 | . . . . . . . . . . . . . . . . . . . . . . . . . . . . 7 . . . . . . . . . . . report_schematics 23 | . . . . . . . . . . . . . . . . . . . . . . . . . . . . 18 . . . . . . . 1 4 . . report_analyses 7 | . . . . . . . . . . . . . . . . . . . . . . . . . . . . . . . . . 2 . . . 5 . . link_fov 2 | . . . . . . . . . . . . . . . . . . . . . . . . . . . . . . . . 1 . . 1 . . . . scatter_targeting 1 | . . . . . . . . . . . . . . . . . . . . . . . . . . . . . . . . . . . . 1 . . . overload_power 1 | . . . . . . . . . . . . . . . . . . . . . . . . . . . . . . . . 1 . . . . . . . amplify_resonance 1 | . . . . . . . . . . . . . . . . . . . . . . . . . . . . . . . . . . 1 . . . . . wipe_record 1 | . . . . . . . . . . . . . . . . . . . . . . . . . . . . . . . . . . . 1 . . . . go_dormant 1 | . . . . . . . . . . . . . . . . . . . . . . . . . . . . . . . . . . . 1 . . . . overwrite_iff 6 | . . . . . . . . . . . . . . 1 . . . . . . . . . . . . . . . . . . . 1 3 1 . . . streamctrl_high 2 | . . . . . . . . . . . . . . 1 . . . 1 . . . . . . . . . . . . . . . . . . . . . formatsys_low 2 | . . . . . . . . . . . . . . . . . . . . . 1 . . . . . . . . . . . . . . . . 1 . formatsys_high 24 | . . . . . . . . . 1 . . . . 1 . . . 3 . . . . . . . . . 6 . . 4 1 . 6 1 . . . 1 Relay Couplers Released 69 | . . . . . . 5 . 4 . . . 4 . 5 . . . 12 . . 4 . . . 1 . . 8 3 . 5 . . 11 . . 3 4 . Ejected 15 | . . . . . . . . . . . . . . . . . . . . . . . . . . . . 8 . . . . . . . . 3 4 . Machine Destruction 50 | . . . . . . 5 . 4 . . . 4 . 5 . . . 12 . . . . . . 1 . . . 3 . 5 . . 11 . . . . . Programmers 4 | . . . . . . . . . . . . . . . . . . . . . 4 . . . . . . . . . . . . . . . . . . Attached 33 | . . . . . . . . . 1 . . . . 4 . . . 2 . . 1 . . . . . . 6 1 . 2 2 1 4 4 1 2 1 1 Robots Rewired 15 | . . . . . . . . . . . . . . . . . . 3 . . . 9 . . . . . . . . . . . . . 1 . . 2 Allies Hacked 1 | . . . . . . . . . . . . . . . . . . . . . . . . . . . . . . . . 1 . . . . . . . Hacks Repelled . | . . . . . . . . . . . . . . . . . . . . . . . . . . . . . . . . . . . . . . . . Allies | -11 -10 -10 -10 -9 -8 -8 -8 -8 -7 -7 -7 -7 -7 -7 -6 -6 -6 -6 -5 -5 -5 -5 -5 -5 -5 -4 -4 -4 -4 -4 -4 -3 -3 -3 -2 -2 -2 -1 -1 -------- Run | Scr Mat Min Exi Min Mat Gar Mat Gar Fac Was Fac Gar Fac Gar Fac Was Fac Gar Fac Was Fac Ext Cet Arc Hub Fac Was Fac Gar Fac Gar Res Qua Gar Res Tes Sec Acc Com Total Allies 195 | . . . . . . . . . 4 19 4 . 2 3 9 19 1 7 2 19 4 16 5 . 3 3 20 12 . 6 4 6 . 7 8 5 1 3 3 Largest Group 20 | . . . . . . . . . 3 20 4 1 2 2 3 19 4 3 1 19 2 5 6 4 6 2 19 4 . 4 4 3 . 5 4 3 1 2 1 Highest-Rated Group 714 | . . . . . . . . . 62 497 104 26 76 64 93 696 163 114 10 714 36 255 608 376 370 36 714 141 . 158 192 125 . 243 168 164 26 128 222 Highest-Rated Ally 222 | . . . . . . . . . 32 35 26 26 38 32 32 50 46 47 10 50 26 156 144 94 94 26 50 56 . 56 49 46 . 56 58 164 26 64 222 Total Orders 198 | . . . . . . . . . 16 . 16 6 . 1 11 . . 1 . . 16 11 3 . 46 15 . 14 . 6 . 5 . 5 15 6 3 2 . STAY 30 | . . . . . . . . . 1 . 3 2 . 1 2 . . . . . 4 3 . . . 5 . 1 . . . . . . 4 2 1 1 . GOTO 98 | . . . . . . . . . 7 . 5 1 . . 5 . . 1 . . 4 2 2 . 43 3 . 8 . 4 . 2 . 3 5 2 1 . . ROAM 4 | . . . . . . . . . . . 1 . . . . . . . . . . 1 . . 2 . . . . . . . . . . . . . . FOLLOW 65 | . . . . . . . . . 8 . 7 3 . . 4 . . . . . 8 5 1 . 1 7 . 5 . 2 . 3 . 2 6 2 1 . . AID 1 | . . . . . . . . . . . . . . . . . . . . . . . . . . . . . . . . . . . . . . 1 . Ally Attacks 889 | . . . . . . . . . 5 181 . . 4 4 19 52 17 18 . 93 . 107 34 13 26 . 75 31 . 2 35 31 . 78 11 29 . 10 14 Total Damage 30176 | . . . . . . . . . 168 5757 . . 331 130 385 2527 491 385 . 4100 . 2035 1069 546 863 . 1816 1097 . . 1075 714 . 2414 397 1611 . 682 1583 Kills 119 | . . . . . . . . . 1 18 . . 2 2 3 4 4 3 . 11 . 11 8 3 3 . 1 4 . . 9 5 . 11 1 4 . 4 7 Allies Corrupted 2 | . . . . . . . . . . . . . . . . . . . . . . . . . . . . . . . . . . . . . . 2 . Allies Melted 3 | . . . . . . . . . . . . . . . . . . . . . . 1 . . 2 . . . . . . . . . . . . . . Intel | -11 -10 -10 -10 -9 -8 -8 -8 -8 -7 -7 -7 -7 -7 -7 -6 -6 -6 -6 -5 -5 -5 -5 -5 -5 -5 -4 -4 -4 -4 -4 -4 -3 -3 -3 -2 -2 -2 -1 -1 ------- Run | Scr Mat Min Exi Min Mat Gar Mat Gar Fac Was Fac Gar Fac Gar Fac Was Fac Gar Fac Was Fac Ext Cet Arc Hub Fac Was Fac Gar Fac Gar Res Qua Gar Res Tes Sec Acc Com Robot Analysis Total 7 | . . . . . . . . . . . 1 . . . . . 1 . 1 . . . . . . . . 1 . . . . 1 . . 1 1 . . Derelict Logs Recovered 1 | . . 1 . . . . . . . . . . . . . . . . . . . . . . . . . . . . . . . . . . . . . Drone Launches 2 | . . . . . . . . . . . . . . . . . . . . . . . . . 2 . . . . . . . . . . . . . . Drone Recoveries . | . . . . . . . . . . . . . . . . . . . . . . . . . . . . . . . . . . . . . . . . Exploration | -11 -10 -10 -10 -9 -8 -8 -8 -8 -7 -7 -7 -7 -7 -7 -6 -6 -6 -6 -5 -5 -5 -5 -5 -5 -5 -4 -4 -4 -4 -4 -4 -3 -3 -3 -2 -2 -2 -1 -1 ------------- Run | Scr Mat Min Exi Min Mat Gar Mat Gar Fac Was Fac Gar Fac Gar Fac Was Fac Gar Fac Was Fac Ext Cet Arc Hub Fac Was Fac Gar Fac Gar Res Qua Gar Res Tes Sec Acc Com Turns Passed 55574 | 74 1137 265 358 458 1129 561 2235 518 2449 134 2761 792 302 413 4861 175 1542 1189 1487 136 1775 1463 535 140 454 2898 173 4532 299 2660 512 2949 1175 923 3412 2307 3289 1672 1430 Spaces Moved 72729 | 55 825 112 322 226 548 287 1338 288 3571 235 4518 486 296 639 6580 324 2569 875 2338 295 2951 1790 505 108 756 4728 264 7682 320 4642 499 4142 1726 700 4294 2929 3883 2301 1782 Core 37 | 3 . . . . 1 . . . . . . . . . . . . . . . . . . . . . . . . . . . . 4 . . . . 29 Treads 424 | . 5 . . 4 177 64 . . 1 . . 173 . . . . . . . . . . . . . . . . . . . . . . . . . . . Legs 100 | . . . . . . . . . . . . 100 . . . . . . . . . . . . . . . . . . . . . . . . . . . Wheels 4417 | 52 820 112 322 222 370 223 1338 288 460 . . 67 143 . . . . . . . . . . . . . . . . . . . . . . . . . . Hover 65035 | . . . . . . . . . 394 235 4518 146 153 639 6580 324 2569 875 2338 295 2951 1790 505 108 756 4728 264 7682 320 4642 499 4142 1726 696 4294 2929 3883 2301 1753 Flight 2716 | . . . . . . . . . 2716 . . . . . . . . . . . . . . . . . . . . . . . . . . . . . . Fastest Speed 17 | 50 90 110 110 110 120 130 120 130 31 36 28 32 33 32 30 30 30 35 36 40 26 30 31 36 34 32 34 30 38 34 36 28 17 34 33 36 33 36 36 Average Speed 43 | 89 96 110 110 146 148 142 127 130 45 36 35 119 72 36 36 32 33 45 38 41 39 36 43 44 35 34 34 36 43 35 38 39 34 85 35 38 43 39 42 Slowest Speed 1400 | 100 160 110 110 220 1400 205 130 140 240 36 116 200 180 38 108 33 43 48 98 98 93 94 94 94 98 96 34 116 114 122 118 138 46 250 148 131 144 134 148 Overloaded Moves 149 | . . . . . . . . . . . . . . . . 7 5 . . . . 12 11 . . . . 22 25 51 . . 5 . 2 . 9 . . Propulsion Burnouts . | . . . . . . . . . . . . . . . . . . . . . . . . . . . . . . . . . . . . . . . . Robots Hopped 5 | . . . . . . . . . 5 . . . . . . . . . . . . . . . . . . . . . . . . . . . . . . Cave-ins Triggered 4 | . . . . . . . . . . . . . . . 1 . . . . . . . . . . . . . . . . . . . 1 . . 1 1 Exploration Rate (%) 63 | 4 97 17 70 56 44 50 95 40 63 79 68 58 9 59 72 86 43 54 55 91 63 86 85 81 83 50 82 85 42 58 51 63 88 69 74 95 88 47 43 Regions Visited 39 Branch Regions 11 Pre-discovered Areas 1 | . . . . 1 . . . . . . . . . . . . . . . . . . . . . . . . . . . . . . . . . . . Known Exits Taken 18 | . . . . . 1 . 1 . . . 1 . 1 . . . 1 . . . 1 1 1 1 1 . . 1 . 1 . 1 1 . 1 1 1 1 . Unknown Exits Taken 5 | 1 1 1 1 1 . . . . . . . . . . . . . . . . . . . . . . . . . . . . . . . . . . . Scrap Searched 3 | . . . . 3 . . . . . . . . . . . . . . . . . . . . . . . . . . . . . . . . . . . Spaces Dug 2011 | . 14 4 . 22 8 9 63 7 75 . 118 12 7 18 197 2 103 32 95 . 68 3 . . 59 124 3 193 21 138 10 200 39 . 165 45 81 64 12 Terrain Destroyed 4634 | . 14 4 . 111 33 31 70 98 87 19 176 125 7 54 234 47 128 237 140 . 77 114 107 4 251 244 170 440 245 227 50 251 39 36 205 57 133 186 183 Melee 1855 | . 14 4 . . 8 . 63 . 66 . 118 . 7 . 197 2 103 13 95 . 68 3 . . 21 124 3 193 1 138 8 200 39 . 165 45 81 64 12 Projectile 19 | . . . . . . . . 2 . . . . . . . . . . . . . . . 4 . . 1 . . . 2 . . 1 1 . 4 . 4 AOE 2760 | . . . . 111 25 31 7 96 21 19 58 125 . 54 37 45 25 224 45 . 9 111 107 . 230 120 166 247 244 89 40 51 . 35 39 12 48 122 167 Actions | -11 -10 -10 -10 -9 -8 -8 -8 -8 -7 -7 -7 -7 -7 -7 -6 -6 -6 -6 -5 -5 -5 -5 -5 -5 -5 -4 -4 -4 -4 -4 -4 -3 -3 -3 -2 -2 -2 -1 -1 --------- Run | Scr Mat Min Exi Min Mat Gar Mat Gar Fac Was Fac Gar Fac Gar Fac Was Fac Gar Fac Was Fac Ext Cet Arc Hub Fac Was Fac Gar Fac Gar Res Qua Gar Res Tes Sec Acc Com Total 90746 | 68 1022 243 328 301 725 386 1700 363 4278 276 5426 605 372 791 8551 379 3062 1585 2717 302 3397 2503 757 171 888 5709 305 8936 424 5345 755 5100 2204 974 5812 3913 5065 2781 2227 Wait 11238 | . 69 122 . 33 47 25 192 1 476 34 712 26 50 62 1608 42 337 579 190 . 247 568 151 32 83 669 4 797 15 426 105 589 354 114 1053 645 546 176 59 Move 72685 | 54 824 111 321 225 548 285 1338 286 3562 234 4518 484 296 637 6579 323 2569 874 2338 294 2950 1789 504 107 755 4728 263 7682 319 4642 498 4141 1726 699 4292 2928 3882 2299 1781 Hop 4 | . . . . . . . . . 4 . . . . . . . . . . . . . . . . . . . . . . . . . . . . . . Pick Up 435 | 4 23 2 3 . 13 6 21 2 21 . 5 1 3 6 20 . 5 14 15 1 14 2 7 3 2 11 . 16 5 6 6 13 7 15 32 55 52 9 15 Fast Attach 225 | 6 1 . . . 8 3 1 . 10 . 6 11 4 8 7 . 2 5 9 . 6 1 6 . . 6 . 8 . 6 . 11 4 5 10 24 30 5 22 Attach 276 | . 3 . . 1 5 7 3 1 13 . 2 2 . 1 9 . 5 2 7 . 6 1 2 1 . 3 . 11 2 5 8 10 6 8 21 25 51 17 38 Detach 184 | . . . . . . 4 2 . 6 . 2 1 1 4 4 . 3 3 2 . 1 1 2 . . 2 . 9 3 5 5 6 6 8 14 23 39 15 13 Swap 950 | . 13 2 . 6 13 9 14 10 25 2 18 12 3 10 20 6 9 17 11 1 21 27 22 4 9 46 6 93 32 50 30 39 22 32 76 46 88 57 49 Drop 431 | . 9 1 4 . 10 2 11 2 47 . 8 1 7 12 7 . 1 13 10 1 17 5 12 2 4 12 . 9 4 5 2 7 5 15 46 40 64 14 22 Fire 1158 | 4 59 . . 36 35 37 23 55 23 6 7 30 . 15 8 6 2 19 1 5 6 28 44 13 3 15 27 36 24 11 36 19 16 54 37 36 133 80 169 Melee 2824 | . 21 5 . . 46 . 95 . 77 . 148 37 8 10 288 2 123 49 134 . 111 50 7 9 31 180 5 271 9 162 12 231 58 1 219 91 180 108 46 Ram 1 | . . . . . . . . . 1 . . . . . . . . . . . . . . . . . . . . . . . . . . . . . . Kick . | . . . . . . . . . . . . . . . . . . . . . . . . . . . . . . . . . . . . . . . . Crush . | . . . . . . . . . . . . . . . . . . . . . . . . . . . . . . . . . . . . . . . . Escape Stasis 192 | . . . . . . 8 . 6 . . . . . 26 1 . . . . . . 12 . . . . . . 11 13 53 13 . 23 12 . . 1 13 Rewire . | . . . . . . . . . . . . . . . . . . . . . . . . . . . . . . . . . . . . . . . . Trap 142 | . . . . . . . . . 13 . . . . . . . 6 10 . . 18 19 . . . 37 . 4 . 14 . 21 . . . . . . . Miscellaneous 1 | . . . . . . . . . . . . . . . . . . . . . . . . . 1 . . . . . . . . . . . . . . Route ------- -11/Scrapyard -10/Materials (discovered 5 exits: [*Mat x3] / [*Min x2]) -10/Mines -10/Exiles -9/Mines -8/Materials (discovered 3 exits: *Fac x2 / Gar) -8/Garrison (discovered 2 exits: *Mat x2) -8/Materials (discovered 3 exits: *Fac x2 / Gar) -8/Garrison -7/Factory (discovered 6 exits: *Fac x3 / *Sto x2 / *Low) -7/Waste -7/Factory (discovered 5 exits: *Fac x2 / *Sto / *Low / Gar) -7/Garrison (discovered 2 exits: *Fac x2) -7/Factory -7/Garrison (discovered 2 exits: *Fac x2) -6/Factory (discovered 2 exits: *Fac / *Low) -6/Waste -6/Factory (discovered 3 exits: *Fac / *Low / Gar) -6/Garrison -5/Factory (discovered 3 exits: *Upp / *Ext x2) -5/Waste -5/Factory (discovered 5 exits: *Fac x3 / *Upp / *Ext) -5/Extension (discovered 2 exits: *Fac / *Cet) -5/Cetus (discovered 3 exits: *Fac x2 / *Arc) -5/Archives (discovered 3 exits: *Fac / *Hub x2) -5/Hub_04(d) (discovered 4 exits: *Fac x4) -4/Factory -4/Waste -4/Factory (discovered 6 exits: *Res x3 / *Upp x2 / Gar) -4/Garrison -4/Factory (discovered 5 exits: *Res x3 / *Upp / Gar) -4/Garrison (discovered 2 exits: *Res x2) -3/Research (discovered 4 exits: *Res x2 / *Qua x2) -3/Quarantine (discovered 2 exits: *Res / Gar) -3/Garrison (discovered 2 exits: *Res x2) -2/Research (discovered 4 exits: *Acc x2 / *Tes x2) -2/Testing (discovered 2 exits: *Acc / *Sec) -2/Section 7 -1/Access -1/Command History --------- Turn | Location | Event 24 | -11/Scrapyard | Discovered new exit (range 16) 75 | -11/Scrapyard | Entered Materials 291 | -10/Materials | Discovered new exit (range 8) 301 | -10/Materials | Build established: Mutant 377 | -10/Materials | Discovered new exit (range 16) 459 | -10/Materials | Discovered new exit (range 20) 465 | -10/Materials | Central database locked down 558 | -10/Materials | Destroyed 7 combat bots 676 | -10/Materials | Discovered new exit (range 11) 774 | -10/Materials | Discovered new exit (range 16) 996 | -10/Materials | Repaired Mining Claw 1212 | -10/Materials | Entered Mines 1221 | -10/Mines | Learned location of 1 exit from Materials 1239 | -10/Mines | Received a Rocket Launcher from a helpful Derelict 1251 | -10/Mines | Assembled infested the area 1256 | -10/Mines | Assisted by a Guerilla fighting off Assembled 1304 | -10/Mines | Met a Derelict bent on vengeance 1373 | -10/Mines | Found a damaged Exp. Sensor Array with a note attached 1447 | -10/Mines | Found Prototype Device 1467 | -10/Mines | Build established: Hauler-Mutant 1473 | -10/Mines | Deemed a non-threat by the Exiles lab entrance 1473 | -10/Mines | Discovered new exit (range 5) 1477 | -10/Mines | Entered Exiles 1504 | -10/Exiles | Met 8R-AWN 1521 | -10/Exiles | Met EX-HEX 1581 | -10/Exiles | Met EX-DEC 1673 | -10/Exiles | Met EX-BIN 1689 | -10/Exiles | Aligned with FarCom system 1690 | -10/Exiles | Given EX-Vault access code 1716 | -10/Exiles | Opened EX-Vault 1723 | -10/Exiles | Found Skeleton Box 1727 | -10/Exiles | Found Firepult 1753 | -10/Exiles | Warned to stay clear of 0b10 Research branches 1822 | -10/Exiles | Discovered new exit (range 14) 1835 | -10/Exiles | Stole two prototypes: Skeleton Box, Firepult 1835 | -10/Exiles | Entered Mines 1880 | -9/Mines | Core integrity fell below 50% 1932 | -9/Mines | Destroyed 11 combat bots 1999 | -9/Mines | Learned location of Storage (-7) 2214 | -9/Mines | Excavation squad dispatched 2214 | -9/Mines | A large section of the Mines collapsed 2257 | -9/Mines | Discovered new exit (range 13) 2265 | -9/Mines | Core integrity fell below 20% 2293 | -9/Mines | Entered Materials 2293 | -8/Materials | Evolved 4 slots: Utility x4 2294 | -8/Materials | Identified exit to Factory 2778 | -8/Materials | Discovered exit to Factory (range 6) 3050 | -8/Materials | Lost 3 parts (1p1n1u) 3422 | -8/Materials | Identified exit to Garrison 3422 | -8/Materials | Entered Garrison 3490 | -8/Garrison | Triggered checkpoint 3596 | -8/Garrison | Triggered checkpoint 3678 | -8/Garrison | Discovered new exit (range 8) 3686 | -8/Garrison | Identified exit to Materials 3794 | -8/Garrison | Discovered exit to Materials (range 15) 3818 | -8/Garrison | Installed Relay Interface Framework 3867 | -8/Garrison | Triggered checkpoint 3872 | -8/Garrison | Core integrity fell below 50% 3921 | -8/Garrison | Garrison Relay disabled 3983 | -8/Garrison | Entered Materials 4188 | -8/Materials | Identified Exp. Sensor Array 4364 | -8/Materials | Discovered exit to Factory (range 8) 5937 | -8/Materials | Discovered exit to Factory (range 3) 6218 | -8/Materials | Identified exit to Garrison 6218 | -8/Materials | Entered Garrison 6252 | -8/Garrison | Core integrity fell below 20% 6424 | -8/Garrison | Garrison Relay disabled 6510 | -8/Garrison | Triggered checkpoint 6706 | -8/Garrison | Discovered exit to Factory (range 11) 6726 | -8/Garrison | Expanded RIF knowledge: Coupler Efficiency 6736 | -8/Garrison | Entered Factory 6736 | -7/Factory | Evolved 2 slots: Propulsion x2 6738 | -7/Factory | FarCom data flow suspended 7488 | -7/Factory | Discovered new exit (range 5) 7535 | -7/Factory | Discovered new exit (range 4) 7814 | -7/Factory | Discovered new exit (range 4) 7815 | -7/Factory | Identified exit to Factory 7889 | -7/Factory | Discovered exit to Factory (range 15) 8143 | -7/Factory | Build established: Hacker-Mutant 8188 | -7/Factory | Hacking Suite fried by hacking feedback 8508 | -7/Factory | Central database locked down 8541 | -7/Factory | Discovered new exit (range 13) 8735 | -7/Factory | Fabricated Mic. Fission Core? 8747 | -7/Factory | Fabricated Linear Gravjet? 8771 | -7/Factory | Discovered new exit (range 16) 8894 | -7/Factory | Fabricated Linear Gravjet? 8940 | -7/Factory | Fabricated Linear Gravjet (x2) 9185 | -7/Factory | Sucked down chute 9185 | -7/Factory | Entered Waste 9189 | -7/Waste | Spotted C-40 Crusher 9195 | -7/Waste | Spotted C-40 Crusher 9210 | -7/Waste | 1 allies followed down the chute 9223 | -7/Waste | Spotted C-40 Crusher 9229 | -7/Waste | Spotted C-40 Crusher 9229 | -7/Waste | Spotted C-40 Crusher 9232 | -7/Waste | Warlord forces began an assault 9241 | -7/Waste | Allies destroyed C-40 Crusher 9243 | -7/Waste | Spotted C-40 Crusher 9246 | -7/Waste | Allies destroyed C-40 Crusher 9252 | -7/Waste | Allies destroyed C-40 Crusher 9262 | -7/Waste | Allies destroyed C-40 Crusher 9283 | -7/Waste | Allies destroyed C-40 Crusher 9297 | -7/Waste | Allies destroyed C-40 Crusher 9314 | -7/Waste | Discovered new exit (range 13) 9318 | -7/Waste | Identified exit to Factory 9319 | -7/Waste | Entered Factory 9698 | -7/Factory | Discovered new exit (range 5) 9699 | -7/Factory | Identified exit to Storage 9746 | -7/Factory | Discovered exit to Factory (range 16) 10421 | -7/Factory | Discovered exit to Factory (range 7) 11035 | -7/Factory | Discovered new exit (range 5) 11036 | -7/Factory | Identified exit to Lower Caves 11184 | -7/Factory | Repaired Exp. Sensor Array 11623 | -7/Factory | Fabricated Imp. Hacking Suite? 11720 | -7/Factory | Local fabrication network quarantined 11800 | -7/Factory | Fabricated Imp. Hacking Suite (x1) 11804 | -7/Factory | Fabricated Imp. Hacking Suite (x1) 12066 | -7/Factory | Repaired Linear Gravjet 12080 | -7/Factory | Identified exit to Garrison 12080 | -7/Factory | Entered Garrison 12080 | -7/Garrison | Accompanied by 1 ally 12100 | -7/Garrison | Triggered checkpoint 12136 | -7/Garrison | Triggered checkpoint 12186 | -7/Garrison | Discovered new exit (range 13) 12264 | -7/Garrison | Lost 3 parts (3n) 12304 | -7/Garrison | Triggered checkpoint 12349 | -7/Garrison | Garrison Relay disabled 12444 | -7/Garrison | Triggered checkpoint 12494 | -7/Garrison | Destroyed 7 combat bots 12608 | -7/Garrison | Core integrity fell below 50% 12642 | -7/Garrison | Lost 4 parts (1p3n) 12717 | -7/Garrison | Triggered checkpoint 12846 | -7/Garrison | Discovered new exit (range 12) 12856 | -7/Garrison | Identified exit to Factory 12863 | -7/Garrison | Expanded RIF knowledge: Program Shield 12872 | -7/Garrison | Entered Factory 13053 | -7/Factory | Fabricated Linear Gravjet (x2) 13117 | -7/Factory | Fabricated Linear Gravjet? 13159 | -7/Factory | Fabricated P-60 Hacker? 13171 | -7/Factory | Identified exit to Garrison 13174 | -7/Factory | Entered Garrison 13198 | -7/Garrison | Triggered checkpoint 13246 | -7/Garrison | Triggered checkpoint 13284 | -7/Garrison | Triggered checkpoint 13288 | -7/Garrison | Garrison Relay disabled 13297 | -7/Garrison | Discovered exit to Factory (range 15) 13500 | -7/Garrison | Discovered exit to Factory (range 10) 13506 | -7/Garrison | Expanded RIF knowledge: Coupler Efficiency 13587 | -7/Garrison | Entered Factory 13587 | -6/Factory | Evolved 2 slots: Power x1, Utility x1 13663 | -6/Factory | Repaired Imp. Gravmag System 13709 | -6/Factory | Repaired Hvy. Rocket Launcher 14893 | -6/Factory | Crushed by falling debris 14924 | -6/Factory | Lost 3 parts (1u2w) 14970 | -6/Factory | Build established: Hacker-Sprinter 14977 | -6/Factory | Imp. Hacking Suite fried by hacking feedback 15121 | -6/Factory | System corruption reached 10% 15142 | -6/Factory | P-60 Hacker assimilated allied Technician 5b 15444 | -6/Factory | Build established: Hacker-Mutant 16222 | -6/Factory | Destroyed 8 combat bots 16237 | -6/Factory | Imp. Hacking Suite fried by hacking feedback 16314 | -6/Factory | Identified exit to Garrison 16796 | -6/Factory | Fabricated Imp. Hacking Suite? 16918 | -6/Factory | Fabricated System Restoration Module (x2) 16934 | -6/Factory | Fabricated Imp. Hacking Suite? 17203 | -6/Factory | Fabricated Mic. Fission Core? 17271 | -6/Factory | Fabricated Linear Gravjet (x2) 17556 | -6/Factory | Discovered new exit (range 16) 17866 | -6/Factory | Allied Derelicts emerged from ambush trap array 18157 | -6/Factory | Repaired Broken Exp. Sensor Array 18447 | -6/Factory | Discovered new exit (range 11) 18448 | -6/Factory | Manually triggered Chute Trap 18448 | -6/Factory | Sucked down chute 18448 | -6/Factory | Entered Waste 18453 | -6/Waste | Spotted C-40 Crusher 18465 | -6/Waste | Spotted C-40 Crusher 18465 | -6/Waste | Spotted C-40 Crusher 18465 | -6/Waste | Spotted C-40 Crusher 18529 | -6/Waste | Spotted C-40 Crusher 18534 | -6/Waste | Spotted C-40 Crusher 18548 | -6/Waste | Discovered new exit (range 15) 18561 | -6/Waste | Warlord forces began an assault 18597 | -6/Waste | Identified exit to Factory 18601 | -6/Waste | Destroyed C-40 Crusher 18605 | -6/Waste | Destroyed C-40 Crusher 18605 | -6/Waste | Destroyed C-40 Crusher 18610 | -6/Waste | Allies destroyed C-40 Crusher 18612 | -6/Waste | Allies destroyed C-40 Crusher 18623 | -6/Waste | Entered Factory 18623 | -6/Factory | Accompanied by 4 allies 18704 | -6/Factory | Discovered new exit (range 15) 18747 | -6/Factory | Build established: Hacker-Sprinter 18845 | -6/Factory | Repaired Linear Gravjet? 19229 | -6/Factory | Repaired Scythe 19283 | -6/Factory | Discovered new exit (range 7) 19285 | -6/Factory | Identified exit to Lower Caves 19402 | -6/Factory | Central database locked down 19642 | -6/Factory | Fabricated Exp. Signal Interpreter? 19707 | -6/Factory | Fabricated Adv. Hacking Suite? 19776 | -6/Factory | Fabricated Adv. Hacking Suite? 19823 | -6/Factory | Local fabrication network quarantined 19839 | -6/Factory | Fabricated Adv. Hacking Suite? 20023 | -6/Factory | First assault squad dispatched 20157 | -6/Factory | Build established: Machinist-Mutant 20165 | -6/Factory | Identified exit to Garrison 20165 | -6/Factory | Entered Garrison 20167 | -6/Garrison | Expanded RIF knowledge: Robot Detection 20323 | -6/Garrison | Triggered checkpoint 20349 | -6/Garrison | Garrison Relay disabled 20539 | -6/Garrison | Triggered checkpoint 20568 | -6/Garrison | Triggered checkpoint 20581 | -6/Garrison | Discovered new exit (range 10) 20695 | -6/Garrison | Identified exit to Factory 20752 | -6/Garrison | Phase Generator disabled 20775 | -6/Garrison | Triggered checkpoint 20851 | -6/Garrison | Garrison Relay disabled 21354 | -6/Garrison | Entered Factory 21354 | -5/Factory | Evolved 2 slots: Propulsion x1, Utility x1 21384 | -5/Factory | Discovered new exit (range 14) 21394 | -5/Factory | Identified exit to Upper Caves 21542 | -5/Factory | Repaired Imp. Medium Armor Plating 21571 | -5/Factory | Repaired Linear Gravjet 21654 | -5/Factory | First assault squad dispatched 21683 | -5/Factory | Build established: Hacker-Mutant 22024 | -5/Factory | Discovered new exit (range 8) 22684 | -5/Factory | Discovered new exit (range 13) 22719 | -5/Factory | Adv. Hacking Suite fried by hacking feedback 22841 | -5/Factory | Sucked down chute 22841 | -5/Factory | Entered Waste 22845 | -5/Waste | Spotted C-40 Crusher 22847 | -5/Waste | Spotted C-40 Crusher 22860 | -5/Waste | Spotted C-40 Crusher 22867 | -5/Waste | Spotted C-40 Crusher 22870 | -5/Waste | Warlord forces began an assault 22887 | -5/Waste | Allies destroyed C-40 Crusher 22888 | -5/Waste | Spotted C-40 Crusher 22888 | -5/Waste | Allies destroyed C-40 Crusher 22891 | -5/Waste | Allies destroyed C-40 Crusher 22892 | -5/Waste | Spotted C-40 Crusher 22898 | -5/Waste | Allies destroyed C-40 Crusher 22912 | -5/Waste | Allies destroyed C-40 Crusher 22928 | -5/Waste | Discovered new exit (range 12) 22976 | -5/Waste | Identified exit to Factory 22977 | -5/Waste | Entered Factory 22977 | -5/Factory | Accompanied by 1 ally 23017 | -5/Factory | Discovered new exit (range 3) 23018 | -5/Factory | Identified exit to Factory 23164 | -5/Factory | Adv. Hacking Suite fried by hacking feedback 23344 | -5/Factory | Central database locked down 23564 | -5/Factory | Lost 3 parts (3n) 23722 | -5/Factory | Discovered exit to Factory (range 14) 23734 | -5/Factory | Fabricated Mni. Smartbomb Launcher? 23825 | -5/Factory | Build established: Bothacker-Mutant 24099 | -5/Factory | Discovered exit to Upper Caves (range 9) 24391 | -5/Factory | Fabricated Linear Gravjet? 24482 | -5/Factory | Repaired Imp. Gravmag System 24563 | -5/Factory | Discovered exit to Factory (range 11) 24601 | -5/Factory | Fabricated Micro-nuke Launcher? 24606 | -5/Factory | Fabricated Linear Gravjet? 24661 | -5/Factory | Local fabrication network quarantined 24736 | -5/Factory | Discovered new exit (range 12) 24748 | -5/Factory | Identified exit to Extension 24752 | -5/Factory | Entered Extension 24752 | -5/Extension | Accompanied by 2 allies 24783 | -5/Extension | Rescued a captive Derelict 24805 | -5/Extension | Rescued a captive Derelict 24805 | -5/Extension | Rescued a captive Derelict 25090 | -5/Extension | Rescued A7 25467 | -5/Extension | Spotted B-75 Beast 25481 | -5/Extension | Allies destroyed B-75 Beast 25502 | -5/Extension | Disrupted transfer network 25502 | -5/Extension | Spotted B-75 Beast 25528 | -5/Extension | Allies destroyed B-75 Beast 25846 | -5/Extension | Rescued a captive Derelict 25883 | -5/Extension | Rescued a captive Derelict 25883 | -5/Extension | Rescued a captive Derelict 26201 | -5/Extension | Discovered exit to Factory (range 10) 26201 | -5/Extension | Discovered new exit (range 6) 26205 | -5/Extension | Identified exit to Cetus 26215 | -5/Extension | Entered Cetus 26215 | -5/Cetus | Accompanied by 1 ally 26220 | -5/Cetus | Acquired a Cetus Manufacturing Module code from A7 26232 | -5/Cetus | Destroyed Cetus Guard 26238 | -5/Cetus | Spotted Cetus Guard 26239 | -5/Cetus | Destroyed Cetus Guard 26240 | -5/Cetus | Destroyed Cetus Guard 26242 | -5/Cetus | Destroyed Cetus Guard 26294 | -5/Cetus | Discovered exit to Factory (range 15) 26301 | -5/Cetus | Destroyed 7 combat bots 26328 | -5/Cetus | Escorted A7 to Cetus Mainframe 26339 | -5/Cetus | Started Cetus Manufacturing Module 26343 | -5/Cetus | Discovered new exit (range 15) 26364 | -5/Cetus | Manufactured an Enhanced Grunt 26389 | -5/Cetus | Manufactured an Enhanced Grunt 26414 | -5/Cetus | Manufactured an Enhanced Grunt 26439 | -5/Cetus | Manufactured an Enhanced Grunt 26464 | -5/Cetus | Manufactured an Enhanced Grunt 26518 | -5/Cetus | Spotted Cetus Guard 26520 | -5/Cetus | Destroyed Cetus Guard 26520 | -5/Cetus | Spotted Cetus Guard 26522 | -5/Cetus | Allies destroyed Cetus Guard 26523 | -5/Cetus | Destroyed Cetus Guard 26535 | -5/Cetus | Discovered exit to Factory (range 15) 26538 | -5/Cetus | Met Revision 17 26661 | -5/Cetus | Cetus Manufacturing Module disabled 26697 | -5/Cetus | Destroyed A7 26724 | -5/Cetus | Identified exit to Archives 26750 | -5/Cetus | Entered Archives 26750 | -5/Archives | Accompanied by 4 allies 26825 | -5/Archives | Discovered new exit (range 15) 26838 | -5/Archives | Unable to access archive contents 26838 | -5/Archives | Unable to access archive contents 26838 | -5/Archives | Unable to access archive contents 26840 | -5/Archives | Discovered new exit (range 15) 26867 | -5/Archives | Discovered exit to Factory (range 16) 26879 | -5/Archives | Identified exit to Hub_04(d) 26890 | -5/Archives | Entered Hub_04(d) 26890 | -5/Hub_04(d) | Accompanied by 3 allies 27089 | -5/Hub_04(d) | Discovered exit to Factory (range 17) 27175 | -5/Hub_04(d) | Discovered exit to Factory (range 50) 27180 | -5/Hub_04(d) | Build established: Scavenger-Mutant 27232 | -5/Hub_04(d) | Network Hub disabled 27325 | -5/Hub_04(d) | Network Hub disabled 27334 | -5/Hub_04(d) | Spotted Lightning 27344 | -5/Hub_04(d) | Entered Factory 27344 | -4/Factory | Evolved 2 slots: Utility x2 27511 | -4/Factory | Repaired Cld. Gravmag System 27562 | -4/Factory | Repaired Inertial Stasis Machine 27616 | -4/Factory | Discovered new exit (range 15) 27943 | -4/Factory | Build established: Hacker-Sprinter 27986 | -4/Factory | Repaired Lrn. Proton Cannon? 28224 | -4/Factory | Fabricated Mni. Fusion Reactor (x1) 28229 | -4/Factory | Fabricated Cmb. Linear Gravjet? 28241 | -4/Factory | Local fabrication network quarantined 28324 | -4/Factory | Fabricated Mni. Fusion Reactor? 28533 | -4/Factory | Build established: Hacker-Mutant 28829 | -4/Factory | Repaired Imp. Utility Shielding 28855 | -4/Factory | Central database locked down 29094 | -4/Factory | First assault squad dispatched 29249 | -4/Factory | Identified exit to Research 29409 | -4/Factory | Spotted B-86 Titan 30242 | -4/Factory | Sucked down chute 30242 | -4/Factory | Entered Waste 30243 | -4/Waste | Met a frightened Derelict 30245 | -4/Waste | 2 allies followed down the chute 30256 | -4/Waste | Spotted C-40 Crusher 30257 | -4/Waste | EMP discharged 30271 | -4/Waste | Destroyed C-40 Crusher 30280 | -4/Waste | Destroyed C-40 Crusher 30285 | -4/Waste | Spotted C-40 Crusher 30286 | -4/Waste | Spotted C-40 Crusher 30291 | -4/Waste | Destroyed C-40 Crusher 30295 | -4/Waste | Spotted C-40 Crusher 30330 | -4/Waste | Destroyed C-40 Crusher 30342 | -4/Waste | Spotted C-40 Crusher 30357 | -4/Waste | EMP discharged 30357 | -4/Waste | System corruption reached 10% 30364 | -4/Waste | Met Warlord forces unprepared to attack 30383 | -4/Waste | Allies destroyed C-40 Crusher 30388 | -4/Waste | Destroyed C-40 Crusher 30404 | -4/Waste | Discovered new exit (range 11) 30415 | -4/Waste | Identified exit to Factory 30415 | -4/Waste | Entered Factory 30415 | -4/Factory | Accompanied by 2 allies 30642 | -4/Factory | Discovered exit to Research (range 15) 30916 | -4/Factory | Discovered new exit (range 15) 30948 | -4/Factory | Repaired Mni. Fusion Reactor? 30954 | -4/Factory | Discovered exit to Research (range 9) 30974 | -4/Factory | Discovered new exit (range 12) 30981 | -4/Factory | Identified exit to Upper Caves 31157 | -4/Factory | Repaired Micro-nuke Launcher? 31304 | -4/Factory | Spotted B-86 Titan 32252 | -4/Factory | Fabricated Adv. Powered Armor? 32287 | -4/Factory | Fabricated EM Dispersion Field? 32303 | -4/Factory | Fabricated C-55 Analyst? 32316 | -4/Factory | Local fabrication network quarantined 32937 | -4/Factory | Build established: Bothacker-Mutant 33170 | -4/Factory | Repaired Imp. Remote Datajack? 33260 | -4/Factory | Repaired Cmb. Linear Gravjet? 33915 | -4/Factory | First assault squad dispatched 33989 | -4/Factory | Discovered exit to Research (range 11) 34319 | -4/Factory | Build established: Hacker-Mutant 34789 | -4/Factory | Build established: Hauler-Mutant 34947 | -4/Factory | Identified exit to Garrison 34947 | -4/Factory | Entered Garrison 34983 | -4/Garrison | Triggered checkpoint 35044 | -4/Garrison | Triggered checkpoint 35051 | -4/Garrison | Triggered checkpoint 35104 | -4/Garrison | Triggered checkpoint 35159 | -4/Garrison | Garrison Relay disabled 35201 | -4/Garrison | High security lockdown imminent 35243 | -4/Garrison | Discovered new exit (range 8) 35246 | -4/Garrison | Identified exit to Factory 35246 | -4/Garrison | Entered Factory 35764 | -4/Factory | Discovered exit to Research (range 13) 35799 | -4/Factory | Build established: Hacker-Mutant 35996 | -4/Factory | First assault squad dispatched 35999 | -4/Factory | Discovered exit to Upper Caves (range 16) 36022 | -4/Factory | Repaired Imp. Utility Shielding? 36131 | -4/Factory | Discovered exit to Research (range 12) 36466 | -4/Factory | Repaired Adv. Powered Armor? 36527 | -4/Factory | Fabricated C-65 Expert? 36543 | -4/Factory | Local fabrication network quarantined 36731 | -4/Factory | Repaired Broken Mni. Fusion Reactor? 36918 | -4/Factory | Spotted B-86 Titan 37103 | -4/Factory | Discovered exit to Research (range 16) 37521 | -4/Factory | Repaired Adv. Transmission Jammer 37906 | -4/Factory | Identified exit to Garrison 37906 | -4/Factory | Entered Garrison 37968 | -4/Garrison | Garrison Relay disabled 37983 | -4/Garrison | Spotted B-86 Titan 38129 | -4/Garrison | Triggered checkpoint 38175 | -4/Garrison | Triggered checkpoint 38181 | -4/Garrison | Triggered checkpoint 38189 | -4/Garrison | Triggered checkpoint 38206 | -4/Garrison | Allies destroyed B-86 Titan 38240 | -4/Garrison | Discovered exit to Research (range 10) 38258 | -4/Garrison | Expanded RIF knowledge: Autoassimilate 38406 | -4/Garrison | Discovered exit to Research (range 8) 38418 | -4/Garrison | Entered Research 38418 | -3/Research | Evolved 2 slots: Utility x2 38666 | -3/Research | Build established: Bothacker-Mutant 38705 | -3/Research | Discovered new exit (range 10) 38734 | -3/Research | Found Fusion Bomb Launcher 38842 | -3/Research | Repaired Broken Cld. Gravmag System? 38899 | -3/Research | Repaired Cmb. Linear Gravjet 38918 | -3/Research | First assault squad dispatched 39055 | -3/Research | Repaired Adv. Powered Armor 39139 | -3/Research | Found Enh. Force Lance 39618 | -3/Research | Discovered new exit (range 9) 39618 | -3/Research | Spotted B-90 Cyclops 39620 | -3/Research | Identified exit to Quarantine 40141 | -3/Research | Discovered new exit (range 15) 40167 | -3/Research | Identified exit to Research 40975 | -3/Research | Central database locked down 41098 | -3/Research | Local fabrication network quarantined 41143 | -3/Research | Fabricated Cld. Linear Gravjet (x1) 41186 | -3/Research | Build established: Hacker-Mutant 41203 | -3/Research | Repaired Inertial Stasis Machine 41229 | -3/Research | Repaired Cmb. Linear Gravjet 41271 | -3/Research | Fabricated Cld. Linear Gravjet (x1) 41367 | -3/Research | Entered Quarantine 41461 | -3/Quarantine | Found Alien Slashing Weapon 41466 | -3/Quarantine | Identified Sigix Broadsword 41756 | -3/Quarantine | Build established: Hauler-Mutant 41829 | -3/Quarantine | Found Core Stripper 41885 | -3/Quarantine | Discovered exit to Research (range 5) 41964 | -3/Quarantine | Repaired Mni. Fusion Reactor 42034 | -3/Quarantine | Found Phase Armor 42542 | -3/Quarantine | Identified exit to Garrison 42542 | -3/Quarantine | Entered Garrison 42571 | -3/Garrison | Triggered checkpoint 42636 | -3/Garrison | Garrison Relay disabled 42736 | -3/Garrison | Triggered checkpoint 42768 | -3/Garrison | Triggered checkpoint 42780 | -3/Garrison | Triggered checkpoint 42876 | -3/Garrison | Triggered checkpoint 42930 | -3/Garrison | Discovered exit to Research (range 15) 42952 | -3/Garrison | Expanded RIF knowledge: Autoassimilate 43039 | -3/Garrison | Garrison Relay disabled 43339 | -3/Garrison | Discovered exit to Research (range 12) 43343 | -3/Garrison | Triggered checkpoint 43410 | -3/Garrison | Garrison Relay disabled 43465 | -3/Garrison | Entered Research 43465 | -2/Research | Evolved 2 slots: Utility x2 43708 | -2/Research | Build established: Botlord-Mutant 43848 | -2/Research | Repaired Mni. Fusion Reactor 43933 | -2/Research | Repaired Exp. Heat Sink? 44240 | -2/Research | Discovered new exit (range 11) 44760 | -2/Research | Spotted B-90 Cyclops 44761 | -2/Research | Crushed by falling debris 44812 | -2/Research | Build established: Bothacker-Mutant 45306 | -2/Research | Repaired Imp. Utility Shielding? 45425 | -2/Research | Identified exit to Testing 45737 | -2/Research | Fabricated Cld. Linear Gravjet? 45951 | -2/Research | Fabricated Cld. Linear Gravjet? 46215 | -2/Research | First assault squad dispatched 46295 | -2/Research | Fabricated Cld. Linear Gravjet? 46304 | -2/Research | Build established: Hauler-Mutant 46411 | -2/Research | Found Prototype Processor 46437 | -2/Research | Identified Exp. Core Analyzer 46556 | -2/Research | Fabricated Cld. Linear Gravjet (x1) 46871 | -2/Research | Discovered new exit (range 8) 46877 | -2/Research | Entered Testing 47037 | -2/Testing | Spotted PX-6HGWH2AOIY 47135 | -2/Testing | Destroyed PX-6HGWH2AOIY 47159 | -2/Testing | Lost 4 parts (3u1w) 47233 | -2/Testing | Found Perforator 47421 | -2/Testing | Found SHELL Armor 47424 | -2/Testing | Found Hvy. Regenerative Plating 47473 | -2/Testing | Repaired Imp. Utility Shielding 47555 | -2/Testing | Repaired Exp. Sensor Array 47889 | -2/Testing | Identified exit to Access 47970 | -2/Testing | Spotted PX-GU4AAOEQRO 48106 | -2/Testing | Rewired PX-GU4AAOEQRO 48309 | -2/Testing | Fabricated Exp. ECM Suite? 48659 | -2/Testing | Fabricated Cld. Linear Gravjet (x1) 48731 | -2/Testing | Spotted Fortress 48882 | -2/Testing | Local fabrication network quarantined 48999 | -2/Testing | Build established: Mutant 49048 | -2/Testing | Destroyed Fortress 49073 | -2/Testing | Lost 3 parts (3u) 49081 | -2/Testing | Found Vortex Chain Reactor 49094 | -2/Testing | Found EM Dispersion Field 49110 | -2/Testing | Found Antimissile System 49127 | -2/Testing | First assault squad dispatched 49167 | -2/Testing | Discovered new exit (range 6) 49170 | -2/Testing | Identified exit to Section 7 49184 | -2/Testing | Entered Section 7 49214 | -2/Section 7 | Found Alien Artifact 49368 | -2/Section 7 | Build established: Hauler-Mutant 49494 | -2/Section 7 | Identified Integrated Reactor 49494 | -2/Section 7 | Installed Integrated Reactor, increased core energy generation (+2%) 49525 | -2/Section 7 | Discovered exit to Access (range 12) 49560 | -2/Section 7 | Found Alien Artifact 49579 | -2/Section 7 | Identified Integrated Dissipator 49579 | -2/Section 7 | Installed Integrated Dissipator, increased core heat dissipation (+2%) 49723 | -2/Section 7 | Spotted S7 Guard 49738 | -2/Section 7 | Found Alien Artifact 49761 | -2/Section 7 | Identified Core Regenerator 49959 | -2/Section 7 | Spotted Alpha 7 49960 | -2/Section 7 | Spotted Alpha 7 49962 | -2/Section 7 | Spotted B-99 Colossus 50004 | -2/Section 7 | Spotted Executioner 50012 | -2/Section 7 | Destroyed Executioner 50052 | -2/Section 7 | Destroyed Alpha 7 50079 | -2/Section 7 | Lost 3 parts (2u1w) 50086 | -2/Section 7 | Destroyed Alpha 7 50090 | -2/Section 7 | Found Prototype Ballistic Gun 50090 | -2/Section 7 | Identified Multirail 50101 | -2/Section 7 | Found Prototype Processor 50101 | -2/Section 7 | Identified Exp. Target Analyzer 50109 | -2/Section 7 | Found Exp. ECM Suite 50114 | -2/Section 7 | Found Exp. Targeting Computer 50116 | -2/Section 7 | Found Exp. Targeting Computer 50129 | -2/Section 7 | Spotted Executioner 50157 | -2/Section 7 | Destroyed Executioner 50318 | -2/Section 7 | Found Alien Energy Gun 50319 | -2/Section 7 | Found Alien Energy Gun 50320 | -2/Section 7 | Identified Sigix Quantum Sheargun (x2) 50438 | -2/Section 7 | Found Integrated Reactor 50438 | -2/Section 7 | Installed Integrated Reactor, increased core energy generation (+2%) 50439 | -2/Section 7 | Found Integrated Reactor 50439 | -2/Section 7 | Installed Integrated Reactor, increased core energy generation (+2%) 50441 | -2/Section 7 | Found Integrated Reactor 50441 | -2/Section 7 | Installed Integrated Reactor, increased core energy generation (+2%) 50552 | -2/Section 7 | Found Alien Artifact 50558 | -2/Section 7 | Found Alien Artifact 50562 | -2/Section 7 | Found Alien Artifact 50609 | -2/Section 7 | Found Alien Artifact 50898 | -2/Section 7 | Found Sigix Quantum Sheargun 50904 | -2/Section 7 | Found Sigix Quantum Sheargun 50943 | -2/Section 7 | Found Prototype Device 50943 | -2/Section 7 | Identified Adv. Kinecellerator 51020 | -2/Section 7 | Found Terrabomb 51072 | -2/Section 7 | Found Matter Drive 51795 | -2/Section 7 | Installed LRC Energy Well, increased energy storage capacity (+250) 51797 | -2/Section 7 | Installed Core Expander, added new Power slot 51933 | -2/Section 7 | Found Integrated Reactor 51933 | -2/Section 7 | Installed Integrated Reactor, increased core energy generation (+2%) 51935 | -2/Section 7 | Installed LRC Storage, increased inventory capacity (+2) 51936 | -2/Section 7 | Installed LRC Boosters, increased mass support (+10) 52087 | -2/Section 7 | Found Transdimensional Reconstructor 52088 | -2/Section 7 | Found Transdimensional Reconstructor 52195 | -2/Section 7 | Found Vibroblade 52196 | -2/Section 7 | Found Vibroblade 52460 | -2/Section 7 | First assault squad dispatched 52473 | -2/Section 7 | Entered Access 52473 | -1/Access | Evolved 2 slots: Utility x1, Weapon x1 52603 | -1/Access | Identified exit to Command 52723 | -1/Access | First assault squad dispatched 53024 | -1/Access | Crushed by falling debris 53080 | -1/Access | Found Gamma Bomb Array 53363 | -1/Access | Build established: Generator-Mutant 53985 | -1/Access | Fabricated Adv. Weapon Cycler? 54121 | -1/Access | Spotted B-99 Colossus 54145 | -1/Access | Entered Command 54323 | -1/Command | Destroyed 11 combat bots 54395 | -1/Command | First assault squad dispatched 54410 | -1/Command | Spotted B-99 Colossus 54542 | -1/Command | Destroyed 7 combat bots 54667 | -1/Command | High security lockdown imminent 54747 | -1/Command | High security lockdown engaged 54910 | -1/Command | Destroyed 18 combat bots 54987 | -1/Command | Spotted Investigator 54992 | -1/Command | Scanned by Researcher 54996 | -1/Command | Destroyed Investigator 55044 | -1/Command | Destroyed 16 combat bots 55095 | -1/Command | Spotted Executioner 55095 | -1/Command | Spotted Striker 55140 | -1/Command | Destroyed Striker 55167 | -1/Command | Destroyed Executioner 55211 | -1/Command | Destroyed 21 combat bots 55228 | -1/Command | Lost 8 parts (3p3u2w) 55290 | -1/Command | Spotted Striker 55290 | -1/Command | Spotted Executioner 55295 | -1/Command | Spotted Investigator 55312 | -1/Command | Crushed by falling debris 55312 | -1/Command | System corruption reached 10% 55316 | -1/Command | Destroyed Striker 55319 | -1/Command | Destroyed Executioner 55321 | -1/Command | Spotted Striker 55323 | -1/Command | Destroyed Investigator 55333 | -1/Command | Spotted Executioner 55336 | -1/Command | Destroyed Striker 55338 | -1/Command | Destroyed Executioner 55347 | -1/Command | Core integrity fell below 50% 55360 | -1/Command | Destroyed 20 combat bots 55360 | -1/Command | Core integrity fell below 20% 55380 | -1/Command | Failed to warp due to unstable space 55382 | -1/Command | Used Core Regenerator, restored core integrity (+400) 55403 | -1/Command | Lost 26 parts (9n13u4w) 55464 | -1/Command | Assimilated Colossus 10a with formatsys_high 55500 | -1/Command | Spotted Executioner 55500 | -1/Command | Spotted Striker 55500 | -1/Command | Spotted Executioner 55500 | -1/Command | Spotted Executioner 55504 | -1/Command | Spotted Striker 55514 | -1/Command | Spotted Alpha 7 55519 | -1/Command | Allies destroyed Striker 55522 | -1/Command | Allies destroyed Executioner 55525 | -1/Command | Allies destroyed Striker 55526 | -1/Command | Spotted Striker 55528 | -1/Command | Spotted Striker 55528 | -1/Command | Spotted Striker 55571 | -1/Command | Spotted B-99 Colossus 55575 | -1/Command | Destroyed by B-99 Colossus with Multirail Last Messages --------------- 55542_ Destroyed Wheel. 55542_ Destroyed Med. Matter Pod. 55542_ K-01 Serf destroyed. 55547_ System corrupted: Component data lost. 55547_ Lrg. Storage Unit destroyed. 55547_ Cld. Linear Gravjet destroyed. 55547_ Knocked back. 55564_ Critical hit. 55564_ Antigrav System destroyed. 55567_ EM Dispersion Field destroyed. 55571_ Knocked back. 55571_ Penetrated by Slug. 55571_ Broken Cmb. Linear Gravjet destroyed. 55571_ Penetrated by Slug. 55571_ Slug penetrates Wall. 55571_ O-32 Director: "IFF HANDSHAKE FAILED. SECURING TERMINAL." 55574_ Terminal disabled. 55574_ Slug penetrates Wall. 55575_ Terminal disabled. 55575_ Penetrated by Slug. Map ----- +----------------------------------------------------+ | | | | | | | | | | | | | | | | | | | | | | | | | | | | | | | | | | | | | | | | | | | ????????????????????????????????######???????????? | | ?????????????????##Y####???????? """ #???????????? | | ?????????????????# ???????""T""#?####??????? | | ?????????????????# ####### " ""## #??????? | | ?????????????????# @ o #??????? | | ?????????????????# ![ # Y #??????? | | ?????????????????# [ # # #????? | | ?????????????????# ?# """ #?????????? | | ?????????????????#######?# K ""T"" #?????????? | | ?????????????????????????# " "" #?????????? | | ?????????????????????????# #?????????? | | ?????????????????????????# #?????????? | | ????????????????????????## #?????????? | | ????????????????????????+ K #;BB# #?????????? | | ????????????????????????######## ##BB# #?????????? | | ???????????????????????????????# #?### ??????????? | | ???????????????????????????????# #???? ?######???? | | ???????????????????????????????# #???# ## #???? | | ???????????????????????????????# #???# ## #???? | | ??????????????????????????????##/##### ## = #???? | | ??????????????????????????????# # ## #???? | | ??????????????????????????????# # ## #???? | | ??????????????????????????????# + #? #???? | | ??????????????????????????????# # #? #???? | | ??????????????????????????????# # #?? !????? | | ??????????????????????????????# # #?? ????? | | ??????????????????????????#########/## ####/###### | | ??????????????????????????+ | | ??????????????????????????#########/####### #### # | +----------------------------------------------------+ Best States ------------- Heat Dissipation 129 Energy Generation 94 Energy Capacity 1060 Matter Stores 500 Matter Capacity 700 Sight Range 20 Robot Scan Range 30 Terrain Scan Density 10 ECM Strength 5 Jamming Range 16 Additional Mass Support 28 Armor Coverage 1500 Resistance: EM 75 Propulsion Shielding 66 Utility Shielding 66 Weapon Cycling 25 Melee Speed Boost 20 Evasion (%) 70 Targeting Accuracy 12 Armor Integrity Analysis 66 Recoil Reduction 3 Matter Filtering 50 Stasis Canceling 2 Offensive Hacking 42 Defensive Hacking 12 Item Schematics ----------------- Med. Storage Unit | -10/Materials | Hacked Lrg. Storage Unit | -8/Materials | Hacked Exp. Sensor Array | -8/Materials | Scanalyzed Hcp. Storage Unit | -8/Materials | Scanalyzed Arm. Huge Wheel | -8/Materials | Scanalyzed Linear Gravjet | -7/Factory | Hacked Mic. Fission Core | -7/Factory | Hacked Imp. Hacking Suite | -7/Factory | Hacked Adv. System Shield | -6/Factory | Hacked Cld. Aerolev Unit | -6/Factory | Scanalyzed Imp. Utility Shielding | -6/Factory | Scanalyzed Adv. Transmission Jammer | -6/Factory | Hacked Adv. Hacking Suite | -6/Factory | Hacked Micro-nuke Launcher | -6/Factory | Hacked Exp. Signal Interpreter | -6/Factory | Hacked Mni. Smartbomb Launcher | -5/Factory | Hacked Cld. Gravmag System | -5/Factory | Scanalyzed Enh. Force Lance | -5/Factory | Hacked Imp. Linear Gravjet | -4/Factory | Hacked Mni. Fusion Reactor | -4/Factory | Hacked Cmb. Linear Gravjet | -4/Factory | Hacked Fusion Bomb Launcher | -4/Factory | Hacked EM Dispersion Field | -4/Factory | Hacked Nanoactuators | -4/Factory | Hacked Exp. Utility Shielding | -4/Factory | Hacked Exp. Targeting Computer | -4/Factory | Hacked Adv. Powered Armor | -4/Factory | Hacked Adv. Armor Integrity Analyzer | -4/Factory | Hacked Prc. Matter Filter | -4/Factory | Reported Cmb. Gravmag System | -4/Factory | Reported Exp. Cooling System | -4/Factory | Reported Enh. Coil Gun | -4/Factory | Reported Gravity Flail | -4/Factory | Reported Imp. Transmission Jammer | -4/Factory | Reported Proton Burst Cannon | -4/Factory | Reported Impulse Thruster | -4/Factory | Reported Plasma Lance | -4/Factory | Reported Lgt. Antimatter Cannon | -4/Factory | Reported Tiamat Missile Launcher | -4/Factory | Reported Diametric Drive | -4/Factory | Reported Fusion Reactor | -4/Factory | Reported Exp. Cesium-ion Thruster | -4/Factory | Reported Hvy. Wave Gun | -4/Factory | Reported Adv. Energy Well | -4/Factory | Reported Maneuvering Thrusters | -4/Factory | Reported Adv. Power Amplifier | -4/Factory | Reported Particle Accelerator | -4/Factory | Reported Imp. Phase Shifter | -4/Factory | Reported Sml. Battery | -4/Factory | Reported Exp. Heat Sink | -4/Factory | Reported Ionic Axe | -4/Factory | Reported Imp. Kinecellerator | -4/Factory | Reported Exp. Field Recycling Unit | -4/Factory | Reported Tesla Bomb Launcher | -4/Factory | Reported Tesla Rifle | -4/Factory | Reported Biomechanical Wings | -4/Factory | Reported Enh. Armored Leg | -4/Factory | Reported Inertial Stasis Machine | -4/Factory | Reported Hpw. Tractor Beam | -4/Factory | Reported Exp. Reclamation Unit | -4/Factory | Reported Myomer Leg | -4/Factory | Reported Adv. Myomer Leg | -4/Factory | Reported Adv. Salvage Targeting Computer | -4/Factory | Reported Molecular Scythe | -4/Factory | Reported Hvy. Siege Treads | -4/Factory | Reported Hvy. Tesla Rifle | -4/Factory | Reported Hyp. Coil Gun | -4/Factory | Reported Lrn. Phase Cannon | -4/Factory | Reported Plasma Sword | -4/Factory | Reported Gui. EMP Blaster | -4/Factory | Reported Cld. Field Propulsion Drive | -4/Factory | Reported Exp. System Shield | -4/Factory | Reported Cld. Nuclear Pulse Thruster | -4/Factory | Reported Hvy. Proton Missile Launcher | -4/Factory | Reported Adv. Thermal Defense Suite | -4/Factory | Reported Imp. KE Penetrator | -4/Factory | Reported Imp. Shock Absorption System | -4/Factory | Reported Imp. Fusion Compressor | -4/Factory | Reported Disruptor Cannon | -4/Factory | Reported Cld. Fission Core | -4/Factory | Reported Enh. Armored Medium Treads | -4/Factory | Reported Power Amplifier | -4/Factory | Reported Drone Bay | -4/Factory | Reported Neutron Missile Launcher | -4/Factory | Reported Cld. Plasma Rifle | -4/Factory | Reported Enh. Flexi-carbon Leg | -4/Factory | Reported Exp. Flexi-carbon Leg | -4/Factory | Reported Tri-rail Accelerator | -4/Factory | Reported Exp. Optical Array | -4/Factory | Reported Prc. Energy Filter | -4/Factory | Reported Adv. Target Analyzer | -4/Factory | Reported Imp. Matter Compressor | -4/Factory | Reported Adv. Dynamic Insulation System | -4/Factory | Reported Imp. Heavy Machine Gun | -4/Factory | Reported Adv. Datajack | -4/Factory | Reported Matter Compressor | -4/Factory | Reported Exp. ECM Suite | -4/Factory | Reported Adv. Plasma Rifle | -4/Factory | Reported Adv. Matter Compressor | -4/Factory | Reported Imp. Energy Well | -4/Factory | Reported Thunder Hammer | -4/Factory | Reported Adv. Signal Interpreter | -4/Factory | Reported Cold Fusion Reactor | -4/Factory | Reported Exp. Melee Analysis Suite | -4/Factory | Reported Enh. Fission Core | -4/Factory | Reported Railgun | -4/Factory | Reported Recalibrator | -4/Factory | Reported Centrium Greatsword | -4/Factory | Reported Hyp. Gauss Cannon | -4/Factory | Reported Exp. Thermal Converter | -4/Factory | Reported Scatter Rocket Array | -4/Factory | Reported Thermal Defense Suite | -4/Factory | Reported Adv. Variable Charge Gun | -4/Factory | Reported Hvy. Antimatter Reactor | -4/Factory | Reported Imp. Sensor Array | -4/Factory | Reported Shock Maul | -4/Factory | Reported EM Disruption Field | -4/Factory | Reported Gravity Neutralizing Apparatus | -4/Factory | Reported Hvy. Gatling Laser | -4/Factory | Reported Cld. Cesium-ion Thruster | -4/Factory | Reported Exp. Terrain Scan Processor | -4/Factory | Reported Lgt. Neutrino Core | -4/Factory | Reported Imp. Focal Shield | -4/Factory | Reported Antimatter Cannon | -4/Factory | Reported Imp. Arc Projector | -4/Factory | Reported Hvy. Proton Cannon | -4/Factory | Reported Exp. Terrain Scanner | -4/Factory | Reported Force Rifle | -4/Factory | Reported Vibroblade | -4/Factory | Reported Cld. Plasma Cannon | -4/Factory | Reported Kinetic Spear | -4/Factory | Reported Energy Well | -4/Factory | Reported F-cell Engine | -4/Factory | Reported Prc. Rocket Launcher | -4/Factory | Reported Exp. Propulsion Shielding | -4/Factory | Reported Impact Mace | -4/Factory | Reported Energy Mantle | -4/Factory | Reported Exp. Hacking Suite | -4/Factory | Reported Cld. Phase Gun | -4/Factory | Reported Exp. Weapon Shielding | -4/Factory | Reported Imp. Actuator Array | -4/Factory | Reported Recoil Nullifier | -4/Factory | Reported Cld. Proton Cannon | -4/Factory | Reported Imp. Lightning Gun | -4/Factory | Reported Imp. Thermal Defense Suite | -4/Factory | Reported Core Analyzer | -4/Factory | Reported Imp. Plasma Cutter | -4/Factory | Reported Cld. Phase Cannon | -4/Factory | Reported Enh. Force Rifle | -4/Factory | Reported Com. Tesla Bomb Launcher | -4/Factory | Reported Imp. Heavy Laser | -4/Factory | Reported Lance | -4/Factory | Reported Greatsword | -4/Factory | Reported Exp. Power Shielding | -4/Factory | Reported Ion Burst Cannon | -4/Factory | Reported Component Analysis Suite | -4/Factory | Reported Plasma Cutter | -4/Factory | Reported Neutrino Core | -4/Factory | Reported Imp. Heavy Armor Plating | -4/Factory | Reported Force Lance | -4/Factory | Reported Imp. Component Analysis Suite | -4/Factory | Reported Com. Ion Cannon | -4/Factory | Reported Energy Filter | -4/Factory | Reported Field Propulsion Drive | -4/Factory | Reported Antigrav System | -4/Factory | Reported Cld. Linear Gravjet | -3/Research | Hacked Nanosword | -3/Research | Hacked Adv. Force Field | -3/Quarantine | Hacked Adv. Overload Regulator | -2/Testing | Reported Gamma Bomb Array | -2/Testing | Reported Adv. Medium Treads | -2/Testing | Reported Exp. Shield Generator | -2/Testing | Reported Adv. Weapon Cycler | -2/Testing | Reported Imp. Diametric Drive | -2/Testing | Reported Adv. Overload Amplifier | -2/Testing | Reported Exp. Stasis Projector | -2/Testing | Reported Imp. Quantum Reactor | -2/Testing | Reported Adv. Thermal Shield | -2/Testing | Reported Lgt. Regenerative Plating | -2/Testing | Hacked Med. Regenerative Plating | -2/Testing | Hacked Com. Mass Driver | -2/Section 7 | Reported Exp. Actuator Array | -2/Section 7 | Reported Exp. Gyrokinetic Inverter | -2/Section 7 | Reported Hacking Suite | -2/Section 7 | Reported Exp. Shock Absorption System | -2/Section 7 | Reported Centrium Light Armor Plating | -2/Section 7 | Reported Cld. Q-thruster | -2/Section 7 | Reported Com. Linear Accelerator | -2/Section 7 | Reported Com. Particle Reactor | -2/Section 7 | Reported HERF Cannon | -2/Section 7 | Reported Prc. Phase Gun | -2/Section 7 | Reported Cld. Antigrav System | -2/Section 7 | Reported Enh. Biometal Leg | -2/Section 7 | Reported Cld. Impulse Thruster | -2/Section 7 | Reported System Purifier | -2/Section 7 | Reported Exp. Matter Compressor | -2/Section 7 | Reported System Shield | -2/Section 7 | Reported Imp. Q-thruster | -2/Section 7 | Reported Antimissile System | -2/Section 7 | Reported Dimensional Manipulator | -2/Section 7 | Reported Exp. Myomer Leg | -2/Section 7 | Reported Graviton Reactor | -2/Section 7 | Reported Exp. Force Field | -2/Section 7 | Reported Exp. Q-thruster | -2/Section 7 | Reported Point Singularity Launcher | -2/Section 7 | Reported Exp. Target Analyzer | -2/Section 7 | Reported Exp. Thermal Generator | -2/Section 7 | Reported Hdn. Centrium Leg | -2/Section 7 | Reported Hvy. Dispersion Rifle | -2/Section 7 | Reported Quantum Reactor | -2/Section 7 | Reported Helical Railgun | -2/Section 7 | Reported Exp. Thermal Shield | -2/Section 7 | Reported Imp. Matter Neutralizer | -2/Section 7 | Reported Exp. Core Analyzer | -2/Section 7 | Reported Imp. Heavy Treads | -2/Section 7 | Reported Launcher Loader | -2/Section 7 | Reported Exp. Biometal Heavy Treads | -2/Section 7 | Reported Com. Matter Pod | -2/Section 7 | Reported Lrn. Terrain Scanner | -2/Section 7 | Reported Imp. Overload Regulator | -2/Section 7 | Reported Robot Schematics ------------------ P-60 Hacker | -7/Factory | Hacked C-55 Analyst | -4/Factory | Hacked C-65 Expert | -4/Factory | Hacked Fabricated ------------ Mic. Fission Core | x2 | -7/Factory Linear Gravjet | x2 | -7/Factory Linear Gravjet | x2 | -7/Factory Linear Gravjet | x2 | -7/Factory Imp. Hacking Suite | x1 | -7/Factory Imp. Hacking Suite | x1 | -7/Factory Imp. Hacking Suite | x1 | -7/Factory Linear Gravjet | x2 | -7/Factory Linear Gravjet | x2 | -7/Factory P-60 Hacker | x2 | -7/Factory Imp. Hacking Suite | x1 | -6/Factory System Restoration Module | x2 | -6/Factory | Preloaded Imp. Hacking Suite | x1 | -6/Factory Mic. Fission Core | x2 | -6/Factory Linear Gravjet | x2 | -6/Factory Exp. Signal Interpreter | x1 | -6/Factory Adv. Hacking Suite | x1 | -6/Factory Adv. Hacking Suite | x1 | -6/Factory Adv. Hacking Suite | x1 | -6/Factory Mni. Smartbomb Launcher | x1 | -5/Factory Linear Gravjet | x2 | -5/Factory Micro-nuke Launcher | x1 | -5/Factory Linear Gravjet | x2 | -5/Factory Mni. Fusion Reactor | x1 | -4/Factory Cmb. Linear Gravjet | x2 | -4/Factory Mni. Fusion Reactor | x1 | -4/Factory Adv. Powered Armor | x1 | -4/Factory EM Dispersion Field | x1 | -4/Factory C-55 Analyst | x1 | -4/Factory C-65 Expert | x1 | -4/Factory Cld. Linear Gravjet | x1 | -3/Research Cld. Linear Gravjet | x1 | -3/Research Cld. Linear Gravjet | x1 | -2/Research Cld. Linear Gravjet | x1 | -2/Research Cld. Linear Gravjet | x1 | -2/Research Cld. Linear Gravjet | x1 | -2/Research Exp. ECM Suite | x1 | -2/Testing Cld. Linear Gravjet | x1 | -2/Testing Adv. Weapon Cycler | x2 | -1/Access Alien Tech Used ----------------- Sigix Broadsword Phase Armor Core Stripper Integrated Reactor Integrated Dissipator Sigix Quantum Sheargun Matter Drive LRC Energy Well Core Expander LRC Storage LRC Boosters Transdimensional Reconstructor Core Regenerator Achievements -------------- None Challenges ------------ None Game ------ Seed GravityFissionSuite Manual? 0 Play Time 20:44:17 Cumulative 961.3 hours Start 2020.03.01 @ 23:47:28 End 2020.03.08 @ 16:55:46 Sessions 15 Manual Loads 0 Difficulty Rogue Special Mode None Game No. 358 Rogue 358 Adventurer 0 Explorer 0 Win Type - Total 23 Types 13/1/7/0/0/0/2 Lore% 96 Gallery% 96 Achievement% 83 Wizard Run 0 Options --------- ASCII 0 Keyboard 1 Movement Vi Keybinds 0 Fullscreen 0 Font 12/Crisp Map View 76x50 Tactical HUD 1 Map Filters NONE Filters NONE Steam 1 RUN: 79f919a9-064c-437d-aad5-5e66ff7f6b4b